Body Name,Body,Service Level,Expense Type,Expense Code,Narrative,Date,Transaction Number,Amount,Capital and Revenue,Supplier Name,Supplier ID
South Ribble Council,http://statistics.data.gov.uk/doc/local-authority/30UN,HR & Communications,Recruitment Expenses,1500,ADVERTISING ON THE ACES WEBSITE JUNE/JULY 2016 FOR ESTATES SURVEYOR POSITION,15/06/2016,0000424849,250.00,Revenue,ACES NORTH WEST BRANCH,00027339
South Ribble Council,http://statistics.data.gov.uk/doc/local-authority/30UN,Information Services,Peripherals,4247,"20 x Plantronics HW251/A headset @ 53.00 each, as per quote",22/06/2016,0000424976,"1,060.00",Revenue,ACS SYSTEMS UK LTD,00070166
South Ribble Council,http://statistics.data.gov.uk/doc/local-authority/30UN,Regeneration,Advertising,4842,Purchase of- Penwortham Live Flyers - 5000 Copies- 4 Date Banners- 2 Venue Banners,22/06/2016,0000419226,498.00,Revenue,AINSWORTH & PARKINSON,130107
South Ribble Council,http://statistics.data.gov.uk/doc/local-authority/30UN,Regeneration,Other Misc,4861,5000 copies -Penwortham Live Flyers 4 - Date Banners,29/06/2016,0000425081,414.00,Revenue,AINSWORTH & PARKINSON,130107
South Ribble Council,http://statistics.data.gov.uk/doc/local-authority/30UN,Revenues Plus,Professional Fees,4513,Invoice J06505. Council Reduction Scheme Consultancy. Public Consultation (Lancs Group),24/06/2016,0000424979,500.00,Revenue,AIREY CONSULTANCY LTD T/A ACS LTD,00089212
South Ribble Council,http://statistics.data.gov.uk/doc/local-authority/30UN,Revenues Plus,Financial,4811,post office trans,08/06/2016,0000424330,"1,179.17",Revenue,ALLPAY LTD,00122276
South Ribble Council,http://statistics.data.gov.uk/doc/local-authority/30UN,Revenues Plus,Financial,4811,pay point,08/06/2016,0000424330,191.53,Revenue,ALLPAY LTD,00122276
South Ribble Council,http://statistics.data.gov.uk/doc/local-authority/30UN,Revenues Plus,Financial,4811,webconnect,08/06/2016,0000424330,46.05,Revenue,ALLPAY LTD,00122276
South Ribble Council,http://statistics.data.gov.uk/doc/local-authority/30UN,Area 3 - Parks/Leyland East West,Grounds Maint Cntrctrs Chgs,4657,"130m3 HARDWOOD CHIPS for Ryden Avenue Playground x 3 loads of 44m3 on 3rd, 4th & 5th May 2016",22/06/2016,0000424980,"1,408.00",Revenue,AMENITY HORTICULTURAL SERVICES LTD,131158
South Ribble Council,http://statistics.data.gov.uk/doc/local-authority/30UN,Area 3 - Parks/Leyland East West,Grounds Maint Cntrctrs Chgs,4657,"130m3 HARDWOOD CHIPS for Ryden Avenue Playground x 3 loads of 44m3 on 3rd, 4th & 5th May 2016",22/06/2016,0000424981,"1,408.00",Revenue,AMENITY HORTICULTURAL SERVICES LTD,131158
South Ribble Council,http://statistics.data.gov.uk/doc/local-authority/30UN,Area 3 - Parks/Leyland East West,Grounds Maint Cntrctrs Chgs,4657,"130m3 HARDWOOD CHIPS for Ryden Avenue Playground x 3 loads of 44m3 on 3rd, 4th & 5th May 2016",22/06/2016,0000424982,"1,408.00",Revenue,AMENITY HORTICULTURAL SERVICES LTD,131158
South Ribble Council,http://statistics.data.gov.uk/doc/local-authority/30UN,Development Enterprise & Comm Mgnt,Advertising,4842,1500 Colour printed programmes A4 folded and stapled for Gregson Green Beer Festival,10/06/2016,0000424695,400.00,Revenue,AMJ LTD (THE STATIONERY STORE),00096946
South Ribble Council,http://statistics.data.gov.uk/doc/local-authority/30UN,Development Enterprise & Comm Mgnt,Advertising,4842,marker,10/06/2016,0000424695,9.96,Revenue,AMJ LTD (THE STATIONERY STORE),00096946
South Ribble Council,http://statistics.data.gov.uk/doc/local-authority/30UN,Property Services,Advertising,4842,Please supply banners & flyers for Leyland market as discussed with the market manager,17/06/2016,0000424784,250.00,Revenue,AMJ LTD (THE STATIONERY STORE),00096946
South Ribble Council,http://statistics.data.gov.uk/doc/local-authority/30UN,Property Services,Advertising,4842,printing sample,17/06/2016,0000424784,50.00,Revenue,AMJ LTD (THE STATIONERY STORE),00096946
South Ribble Council,http://statistics.data.gov.uk/doc/local-authority/30UN,Regeneration,Other Misc,4851,Purchase of: 4 Rolls matt laminating film 4 Rolls gloss laminating film,17/06/2016,0000424935,296.64,Revenue,AMJ LTD (THE STATIONERY STORE),00096946
South Ribble Council,http://statistics.data.gov.uk/doc/local-authority/30UN,Property Services,Rep & Maint Premises,2020,attend site ADDRESS REDACTED - supply and fit a new sink base. Paint the floor grey floor paint. Paint the wall Magnolia,03/06/2016,0000424302,"1,440.00",Revenue,NAME REDACTED,131213
South Ribble Council,http://statistics.data.gov.uk/doc/local-authority/30UN,Development Enterprise & Comm Mgnt,Other Misc,4851,"Consultancy fees as per Contract 1st of June and subsequent letter 18th May Co-Location Project June 2016 - 2000 July 2016 ",22/06/2016,0000425018,"2,000.00",Revenue,ARMSTRONG CONSULTING,131444
South Ribble Council,http://statistics.data.gov.uk/doc/local-authority/30UN,Area 2 - Waste Transport/Eastern & Central Teams,Advertising,4842,5000 x Waste Collection Service Guide As per Quotation 116666,08/06/2016,0000424725,364.00,Revenue,B & D PRINT SERVICES LTD,00015134
South Ribble Council,http://statistics.data.gov.uk/doc/local-authority/30UN,Area 1 - Penwortham Western Parishes,Materials General,4040,100 PARKING PERMITS FOR WORDEN PARK ESTIMATE NUMBER 113615B,10/06/2016,0000424726,272.00,Revenue,B & D PRINT SERVICES LTD,00015134
South Ribble Council,http://statistics.data.gov.uk/doc/local-authority/30UN,Area 2 - Waste Transport/Eastern & Central Teams,Materials General,4040,2 COMPLETE LIFT LINKS - YJ60 PXK - JFC6803 - ,17/06/2016,0000424337,370.76,Revenue,BALMERS GM LTD,00016023
South Ribble Council,http://statistics.data.gov.uk/doc/local-authority/30UN,Information Services,Peripherals,4248,Electrical Works associated with Generator installation,08/06/2016,0000424336,"5,540.71",Revenue,BELEC ELECTRICAL LTD,130290
South Ribble Council,http://statistics.data.gov.uk/doc/local-authority/30UN,Property Services,Rep & Maint Premises,2020,Please arrange for  2 x bollards & rails to be collected as discussed with property services,10/06/2016,0000424698,343.00,Revenue,BELEC ELECTRICAL LTD,130290
South Ribble Council,http://statistics.data.gov.uk/doc/local-authority/30UN,Property Services,Energy Costs,2304,3/1/15 to 31/12/15,22/06/2016,0000394440,287.63,Revenue,BRITISH GAS BUSINESS,00102458
South Ribble Council,http://statistics.data.gov.uk/doc/local-authority/30UN,Property Services,Rep & Maint Premises,2020,Please undertake heating works as specified in your quotation ref 00011782 at ADDRESS REDACTED,22/06/2016,0000425048,"4,211.42",Revenue,BRITISH GAS SERVICES (COMMERCIAL) LTD,00016214
South Ribble Council,http://statistics.data.gov.uk/doc/local-authority/30UN,Property Services,Peripherals,4261,01772 623073,22/06/2016,0000424970,328.08,Revenue,BRITISH TELECOMMUNICATIONS PLC,00015451
South Ribble Council,http://statistics.data.gov.uk/doc/local-authority/30UN,Regeneration,Other Misc,4851,Payment for delivery of: NAME REDACTED Rugby Coaching 2 schools during June/July 2015,10/06/2016,0000424103,280.00,Revenue,BROWNEDGE ST MARYS R C HIGH SCHOOL,00015707
South Ribble Council,http://statistics.data.gov.uk/doc/local-authority/30UN,Development Enterprise & Comm Mgnt,Other Misc,4851,"Primary Schools Coaching at Various Schools April 2016 � July 2016 Total cost = 7,500",10/06/2016,0000424700,"1,250.00",Revenue,BROWNEDGE ST MARYS R C HIGH SCHOOL,00015707
South Ribble Council,http://statistics.data.gov.uk/doc/local-authority/30UN,Development Enterprise & Comm Mgnt,Other Misc,4851,"Primary Schools Coaching at Various Schools April 2016 � July 2016 Total cost = 7,500",10/06/2016,0000424762,500.00,Revenue,BROWNEDGE ST MARYS R C HIGH SCHOOL,00015707
South Ribble Council,http://statistics.data.gov.uk/doc/local-authority/30UN,Healthy Communities,Other Misc,4851,Primary Schools Coaching at various schools April 2016 - July 2016,17/06/2016,0000424850,750.00,Revenue,BROWNEDGE ST MARYS R C HIGH SCHOOL,00015707
South Ribble Council,http://statistics.data.gov.uk/doc/local-authority/30UN,Healthy Communities,Other Misc,4851,Primary Schools Coaching at various schools April 2016 - July 2016,29/06/2016,0000425172,440.00,Revenue,BROWNEDGE ST MARYS R C HIGH SCHOOL,00015707
South Ribble Council,http://statistics.data.gov.uk/doc/local-authority/30UN,Environmental Health,Operational Furniture & Equip,4010,Excess Cold Calculator as per NAMES REDACTED,03/06/2016,0000424104,"1,000.00",Revenue,BUILDING RESEARCH ESTABLISHMENT LTD,131951
South Ribble Council,http://statistics.data.gov.uk/doc/local-authority/30UN,Revenues Plus,Peripherals,4242,LA Data Share Programme,01/06/2016,0000424195,"4,874.51",Revenue,CAPITA BUSINESS SERVICES LTD,00117948
South Ribble Council,http://statistics.data.gov.uk/doc/local-authority/30UN,Property Services,Rep & Maint Premises,2020,credit to cancel invoice out,10/06/2016,0000412809,453.20,Revenue,CASCADE WATER SYSTEMS LTD,00063924
South Ribble Council,http://statistics.data.gov.uk/doc/local-authority/30UN,Scrutiny,Advertising,4848,2 PLACES ON CfPS QUESTIONING SKILLS SESSION ON 26 MAY 2016 CLLR NAME REDACTED & CLLR NAME REDACTED,15/06/2016,0000424705,350.00,Revenue,CENTRE FOR PUBLIC SCRUTINY,00119409
South Ribble Council,http://statistics.data.gov.uk/doc/local-authority/30UN,Homelessness,Contributions,4730,Block booking Flat 20 from the beginning of May to the end of June 2016 works out at 2152.08 for a total of 61 days,15/06/2016,0000424132,"2,152.08",Revenue,CHORLEY BOROUGH COUNCIL,00017352
South Ribble Council,http://statistics.data.gov.uk/doc/local-authority/30UN,Homelessness,Contractors Charges 5,5311,"NAME REDACTED ADDRESS REDACTED for a total of 14 days from 18/05/2016 to 31/05/2016, total of 493.92",15/06/2016,0000424882,493.92,Revenue,CHORLEY BOROUGH COUNCIL,00017352
South Ribble Council,http://statistics.data.gov.uk/doc/local-authority/30UN,Homelessness,Contractors Charges 5,5311,NAME REDACTED ADDRESS REDACTED Supported Housing from 29 April 2016 up to and inclusive of today 26 May 2016. ,22/06/2016,0000424964,987.84,Revenue,CHORLEY BOROUGH COUNCIL,00017352
South Ribble Council,http://statistics.data.gov.uk/doc/local-authority/30UN,Homelessness,Contractors Charges 5,5311,"NAME REDACTED ADDRESS REDACTED 11 days @ 35.28 per day�.388.08 Total 27th May - 6th June inclusive",22/06/2016,0000424985,388.08,Revenue,CHORLEY BOROUGH COUNCIL,00017352
South Ribble Council,http://statistics.data.gov.uk/doc/local-authority/30UN,Shared Financial Services,Consultancy Fees,4541,Lease consultancy fee 1st April 2016 to 31st March 2017,03/06/2016,0000424175,500.00,Revenue,CHRYSTAL CONSULTING LTD,00047717
South Ribble Council,http://statistics.data.gov.uk/doc/local-authority/30UN,Area 2 - Waste Transport/Eastern & Central Teams,External Contractors Charges,4570,SPEC REPAIR - JFC6915 - PJ62UCG - ,22/06/2016,0000425040,400.30,Revenue,CICELEY COMMERCIALS LTD,00059381
South Ribble Council,http://statistics.data.gov.uk/doc/local-authority/30UN,Information Services,Peripherals,4248,"Licence, Support & Maintenance for CGPM000110 for period 01/07/16 - 30/06/17",01/06/2016,0000419199,"14,077.38",Revenue,CIVICA UK LTD,00102717
South Ribble Council,http://statistics.data.gov.uk/doc/local-authority/30UN,Regeneration,Capital Expenditure,C234,Labour of worker and hire of excavator,10/06/2016,0000424086,330.00,Revenue,CLIVE HURT (PLANT HIRE) LTD,00023553
South Ribble Council,http://statistics.data.gov.uk/doc/local-authority/30UN,Regeneration,Capital Expenditure,C234,Labour of worker and hire of excavator,10/06/2016,0000424087,322.00,Revenue,CLIVE HURT (PLANT HIRE) LTD,00023553
South Ribble Council,http://statistics.data.gov.uk/doc/local-authority/30UN,Neighbourhood Admin & Support,Operational Furniture & Equip,4010,Main Depot Door Lock & 60 keys Areas 1 & 2 Garages (2 locks) & 40 Keys Area 3 Garage Lock & 40 keys 2 Padlocks - Main ,29/06/2016,0000425135,473.00,Revenue,COLLINS & SONS,00112435
South Ribble Council,http://statistics.data.gov.uk/doc/local-authority/30UN,Property Services,Rep & Maint Premises,2020,1 falcon dominator 6 ring burner oven to the civic centre. Remove old garland oven and splash back with salamander grill. Instal,01/06/2016,0000424100,"1,570.00",Revenue,COMMERCIAL KITCHEN SERVICES LTD,00019538
South Ribble Council,http://statistics.data.gov.uk/doc/local-authority/30UN,HR & Communications,Balance Sheet,0030,CHILDCARE VOUCHERS JUNE 2016,22/06/2016,0000424763,"3,078.02",Revenue,COMPUTERSHARE VOUCHER SERVICES,00116499
South Ribble Council,http://statistics.data.gov.uk/doc/local-authority/30UN,Property Services,Rep & Maint Premises,2020,Supply & erect a new fence around the concrete base for the generator at the civic centre. Supply 4 x 4 post - rails and lattice ,10/06/2016,0000424681,841.50,Revenue,COOPER BESPOKE JOINERY LTD,00104456
South Ribble Council,http://statistics.data.gov.uk/doc/local-authority/30UN,Property Services,Rep & Maint Premises,2020,materials,10/06/2016,0000424681,"2,400.63",Revenue,COOPER BESPOKE JOINERY LTD,00104456
South Ribble Council,http://statistics.data.gov.uk/doc/local-authority/30UN,Property Services,Other Misc,4421,materials and labour pick up staging at 06.15 4.5.2016. Assemble ramp - erect a canopy over the ramp supply materials. ,10/06/2016,0000424682,598.12,Revenue,COOPER BESPOKE JOINERY LTD,00104456
South Ribble Council,http://statistics.data.gov.uk/doc/local-authority/30UN,Property Services,Other Misc,4421,materials,10/06/2016,0000424682,427.00,Revenue,COOPER BESPOKE JOINERY LTD,00104456
South Ribble Council,http://statistics.data.gov.uk/doc/local-authority/30UN,Property Services,Rep & Maint Premises,2020,"Supply and fit a 2 metre worktop, fit a new metal hand rail labour only. Fit an existing noticeboard and key cupboard. Supply and",10/06/2016,0000424683,515.63,Revenue,COOPER BESPOKE JOINERY LTD,00104456
South Ribble Council,http://statistics.data.gov.uk/doc/local-authority/30UN,Property Services,Rep & Maint Premises,2020,Please supply and fit new plywood over the door frames at ADDRESS REDACTED,10/06/2016,0000424683,123.75,Revenue,COOPER BESPOKE JOINERY LTD,00104456
South Ribble Council,http://statistics.data.gov.uk/doc/local-authority/30UN,Property Services,Rep & Maint Premises,2020,line 1 materials,10/06/2016,0000424683,471.00,Revenue,COOPER BESPOKE JOINERY LTD,00104456
South Ribble Council,http://statistics.data.gov.uk/doc/local-authority/30UN,Property Services,Rep & Maint Premises,2020,line 2 materials,10/06/2016,0000424683,28.80,Revenue,COOPER BESPOKE JOINERY LTD,00104456
South Ribble Council,http://statistics.data.gov.uk/doc/local-authority/30UN,HR & Communications,Training Expense-Course Fees,1408,PLEASE CAN NAME REDACTED ORDER A WHYTE BIKE 629 29ER 2015 FROM WINSTANLEYS BIKES IN WIGAN,08/06/2016,0000424738,595.00,Revenue,CYCLESCHEME CO  UK,130237
South Ribble Council,http://statistics.data.gov.uk/doc/local-authority/30UN,Area 2 - Waste Transport/Eastern & Central Teams,External Contractors Charges,4570,"1 spec repair, RV14 DTZ, JFC6875. (NAME REDACTED)",17/06/2016,0000424921,250.00,Revenue,DAVAND LTD (trading as Longton Coachcraft),131579
South Ribble Council,http://statistics.data.gov.uk/doc/local-authority/30UN,Area 2 - Waste Transport/Eastern & Central Teams,External Contractors Charges,4570,vat,17/06/2016,0000424921,0.00,Revenue,DAVAND LTD (trading as Longton Coachcraft),131579
South Ribble Council,http://statistics.data.gov.uk/doc/local-authority/30UN,Area 2 - Waste Transport/Eastern & Central Teams,External Contractors Charges,4570,"1 spec repair, VN10 DKL, JFC6626. (NAME REDACTED)",03/06/2016,0000424133,448.00,Revenue,DENNIS EAGLE LTD,00019774
South Ribble Council,http://statistics.data.gov.uk/doc/local-authority/30UN,Area 2 - Waste Transport/Eastern & Central Teams,External Contractors Charges,4570,1 spec repair VK09 AHJ JFC6910,17/06/2016,0000424940,484.50,Revenue,DENNIS EAGLE LTD,00019774
South Ribble Council,http://statistics.data.gov.uk/doc/local-authority/30UN,Property Services,Rep & Maint Fixed Plant,2035,2016 /  2017 contract for emergency lighting & fire alarm service at Moss Side Depot,22/06/2016,0000425007,445.00,Revenue,DES Electrical Services Ltd,131437
South Ribble Council,http://statistics.data.gov.uk/doc/local-authority/30UN,Property Services,Rep & Maint Fixed Plant,2035,New fire alarm system - Please carry out work as per your quotation  dated Tues 29th March 2016 of the removal of old existing,24/06/2016,0000425074,"4,146.00",Revenue,DES Electrical Services Ltd,131437
South Ribble Council,http://statistics.data.gov.uk/doc/local-authority/30UN,Property Services,Rep & Maint Premises,2020,2016 / 2017 contract for emergency lighting & fire alarm service at Kingsfold community centre,24/06/2016,0000425075,270.00,Revenue,DES Electrical Services Ltd,131437
South Ribble Council,http://statistics.data.gov.uk/doc/local-authority/30UN,Property Services,Rep & Maint Fixed Plant,2035,2016 / 2017 contract for emergency lighting & fire alarm service at Leyland Market,24/06/2016,0000425076,250.00,Revenue,DES Electrical Services Ltd,131437
South Ribble Council,http://statistics.data.gov.uk/doc/local-authority/30UN,Area 3 - Parks/Leyland East West,Clothing- Uniforms & Laundry,4410,"1 SCAFELL LITE BOOTS, IN LIME - SIZE 8.5 (NAME REDACTED)",17/06/2016,0000424934,178.00,Revenue,NAME REDACTED,00026534
South Ribble Council,http://statistics.data.gov.uk/doc/local-authority/30UN,Area 3 - Parks/Leyland East West,Operational Furniture & Equip,4010,1 X PETZL EMERGENCY KNIFE (NAME REDACTED),17/06/2016,0000424934,16.67,Revenue,NAME REDACTED,00026534
South Ribble Council,http://statistics.data.gov.uk/doc/local-authority/30UN,Area 3 - Parks/Leyland East West,Clothing- Uniforms & Laundry,4410,"1 X HAIX PROTECTOR FOREST BOOT, IN ORANGE  SIZE 10.5 (NAME REDACTED)",17/06/2016,0000424934,191.00,Revenue,NAME REDACTED,00026534
South Ribble Council,http://statistics.data.gov.uk/doc/local-authority/30UN,Area 3 - Parks/Leyland East West,Clothing- Uniforms & Laundry,4410,"1 X HAIX PROTECTOR FOREST BOOT IN ORANGE, SIZE 7 (NAME REDACTED)",17/06/2016,0000424934,191.00,Revenue,NAME REDACTED,00026534
South Ribble Council,http://statistics.data.gov.uk/doc/local-authority/30UN,Area 3 - Parks/Leyland East West,Clothing- Uniforms & Laundry,4410,1 TREE HOG PROFESSIONAL KIT BAG (@44.10)  AND 5 X PERSONAL FIRST AID KIT (@13.95),17/06/2016,0000424934,113.85,Revenue,NAME REDACTED,00026534
South Ribble Council,http://statistics.data.gov.uk/doc/local-authority/30UN,Area 3 - Parks/Leyland East West,Clothing- Uniforms & Laundry,4410,delivery charge,17/06/2016,0000424934,3.00,Revenue,NAME REDACTED,00026534
South Ribble Council,http://statistics.data.gov.uk/doc/local-authority/30UN,Regeneration,Capital Expenditure,C234,"Manufacture, supply and delivery of steel footbridge",01/06/2016,0000424130,"11,100.00",Revenue,DP STRUCTURES LTD,00120485
South Ribble Council,http://statistics.data.gov.uk/doc/local-authority/30UN,Regeneration,Capital Expenditure,C234,"Manufacture, supply and delivery of steel footbridge",01/06/2016,0000424131,"35,950.00",Revenue,DP STRUCTURES LTD,00120485
South Ribble Council,http://statistics.data.gov.uk/doc/local-authority/30UN,Area 3 - Parks/Leyland East West,Grounds Maint Cntrctrs Chgs,4657,1 x EVERGREEN SEAT WITH METALWORK IN GREEN (No Bolts / Anchors required),22/06/2016,0000418940,643.00,Revenue,EARTH ANCHORS LTD,00020925
South Ribble Council,http://statistics.data.gov.uk/doc/local-authority/30UN,Information Services,Peripherals,4260,Peripherals,08/06/2016,0000424723,"2,118.54",Revenue,EE Ltd,131653
South Ribble Council,http://statistics.data.gov.uk/doc/local-authority/30UN,Regeneration,Other Misc,4851,"	Development of secure members area �	Document management system and plugins �	Development of public blog area All about ",10/06/2016,0000424182,499.00,Revenue,Enterprize Web Design & Print Limited,131440
South Ribble Council,http://statistics.data.gov.uk/doc/local-authority/30UN,Area 2 - Waste Transport/Eastern & Central Teams,Cap Vehicles,C440,STAMPING PLATE,22/06/2016,0000424933,350.00,Revenue,ESE WORLD LTD,130042
South Ribble Council,http://statistics.data.gov.uk/doc/local-authority/30UN,Area 2 - Waste Transport/Eastern & Central Teams,Materials General,4040,"4 ANTIROLL BAR BUSHES, 1 SPRING - PE07JAO - JFC6637 - ",01/06/2016,0000424155,302.01,Revenue,EVANSHALSHAW (PRESTON) LTD,00021076
South Ribble Council,http://statistics.data.gov.uk/doc/local-authority/30UN,Democratic Services,Other Misc,4424,HIRE OF 120 POLYTOP TABLES 6FT X 3FT TO BE DELIVERED TO: ADDRESS REDACTED ON WEDNESDAY 22 JUNE ,10/06/2016,0000424703,689.00,Revenue,ev-ent Hire,131954
South Ribble Council,http://statistics.data.gov.uk/doc/local-authority/30UN,Development Enterprise & Comm Mgnt,Other Misc,485A,Contribution to Central Lancashire Business Event 2016,01/06/2016,0000424310,499.00,Revenue,EVENTS NORTHERN LTD,130222
South Ribble Council,http://statistics.data.gov.uk/doc/local-authority/30UN,Area 2 - Waste Transport/Eastern & Central Teams,External Contractors Charges,4570,Additional Clinical Waste Collections 4.5.16 - 25.5.16,22/06/2016,0000424936,465.69,Revenue,FCC Environment Services (UK) Ltd,131612
South Ribble Council,http://statistics.data.gov.uk/doc/local-authority/30UN,Area 2 - Waste Transport/Eastern & Central Teams,External Contractors Charges,4570,Residual Waste - MAY 2016,22/06/2016,0000424937,"39,457.27",Revenue,FCC Environment Services (UK) Ltd,131612
South Ribble Council,http://statistics.data.gov.uk/doc/local-authority/30UN,Area 2 - Waste Transport/Eastern & Central Teams,External Contractors Charges,4570,Dry Recyclable (Non Terraced) MAY 2016,22/06/2016,0000424937,"40,442.70",Revenue,FCC Environment Services (UK) Ltd,131612
South Ribble Council,http://statistics.data.gov.uk/doc/local-authority/30UN,Area 2 - Waste Transport/Eastern & Central Teams,External Contractors Charges,4570,Dry Recycled (Terraced) MAY 2016,22/06/2016,0000424937,"1,995.33",Revenue,FCC Environment Services (UK) Ltd,131612
South Ribble Council,http://statistics.data.gov.uk/doc/local-authority/30UN,Area 2 - Waste Transport/Eastern & Central Teams,External Contractors Charges,4570,Organic Waste (Non terraced) MAY 2016,22/06/2016,0000424937,"27,548.72",Revenue,FCC Environment Services (UK) Ltd,131612
South Ribble Council,http://statistics.data.gov.uk/doc/local-authority/30UN,Area 2 - Waste Transport/Eastern & Central Teams,External Contractors Charges,4570,Organic Waste (Terraced) - MAY 2016,22/06/2016,0000424937,"5,816.70",Revenue,FCC Environment Services (UK) Ltd,131612
South Ribble Council,http://statistics.data.gov.uk/doc/local-authority/30UN,Area 2 - Waste Transport/Eastern & Central Teams,External Contractors Charges,4570,Schedule 2 Properties MAY 2016,22/06/2016,0000424937,"1,666.50",Revenue,FCC Environment Services (UK) Ltd,131612
South Ribble Council,http://statistics.data.gov.uk/doc/local-authority/30UN,Area 2 - Waste Transport/Eastern & Central Teams,External Contractors Charges,4570,Commercial Waste MAY 2016,22/06/2016,0000424937,"6,522.89",Revenue,FCC Environment Services (UK) Ltd,131612
South Ribble Council,http://statistics.data.gov.uk/doc/local-authority/30UN,Area 2 - Waste Transport/Eastern & Central Teams,External Contractors Charges,4570,Bulky Waste Collection MAY 2016,22/06/2016,0000424937,902.23,Revenue,FCC Environment Services (UK) Ltd,131612
South Ribble Council,http://statistics.data.gov.uk/doc/local-authority/30UN,Area 2 - Waste Transport/Eastern & Central Teams,External Contractors Charges,4570,WEEE Collections MAY 2016,22/06/2016,0000424937,337.57,Revenue,FCC Environment Services (UK) Ltd,131612
South Ribble Council,http://statistics.data.gov.uk/doc/local-authority/30UN,Area 2 - Waste Transport/Eastern & Central Teams,External Contractors Charges,4570,Clinical Waste Collections MAY 2016,22/06/2016,0000424937,574.92,Revenue,FCC Environment Services (UK) Ltd,131612
South Ribble Council,http://statistics.data.gov.uk/doc/local-authority/30UN,Area 2 - Waste Transport/Eastern & Central Teams,External Contractors Charges,4570,Replacement Bins,22/06/2016,0000424937,"5,000.00",Revenue,FCC Environment Services (UK) Ltd,131612
South Ribble Council,http://statistics.data.gov.uk/doc/local-authority/30UN,Area 2 - Waste Transport/Eastern & Central Teams,External Contractors Charges,4570,Additional Properties MAY 2016,22/06/2016,0000424937,717.33,Revenue,FCC Environment Services (UK) Ltd,131612
South Ribble Council,http://statistics.data.gov.uk/doc/local-authority/30UN,Area 2 - Waste Transport/Eastern & Central Teams,External Contractors Charges,4570,Additional works per man hour including transport 4hrs,22/06/2016,0000424937,81.48,Revenue,FCC Environment Services (UK) Ltd,131612
South Ribble Council,http://statistics.data.gov.uk/doc/local-authority/30UN,Area 2 - Waste Transport/Eastern & Central Teams,Balance Sheet,0030,retention,22/06/2016,0000424937,"-2,513.01",Revenue,FCC Environment Services (UK) Ltd,131612
South Ribble Council,http://statistics.data.gov.uk/doc/local-authority/30UN,Area 2 - Waste Transport/Eastern & Central Teams,Balance Sheet,0030,retention,22/06/2016,0000424937,"-3,790.17",Revenue,FCC Environment Services (UK) Ltd,131612
South Ribble Council,http://statistics.data.gov.uk/doc/local-authority/30UN,Area 2 - Waste Transport/Eastern & Central Teams,External Contractors Charges,4570,Residual Waste - Inflation Catch up,24/06/2016,0000425089,285.80,Revenue,FCC Environment Services (UK) Ltd,131612
South Ribble Council,http://statistics.data.gov.uk/doc/local-authority/30UN,Area 2 - Waste Transport/Eastern & Central Teams,External Contractors Charges,4570,Dry Recyclable (Non Terraced) Inflation Catch up,24/06/2016,0000425089,299.57,Revenue,FCC Environment Services (UK) Ltd,131612
South Ribble Council,http://statistics.data.gov.uk/doc/local-authority/30UN,Area 2 - Waste Transport/Eastern & Central Teams,External Contractors Charges,4570,Dry Recyclable (Terraced) Inflation Catch up,24/06/2016,0000425089,15.08,Revenue,FCC Environment Services (UK) Ltd,131612
South Ribble Council,http://statistics.data.gov.uk/doc/local-authority/30UN,Area 2 - Waste Transport/Eastern & Central Teams,External Contractors Charges,4570,Organic Waste Inflation Catch up,24/06/2016,0000425089,201.99,Revenue,FCC Environment Services (UK) Ltd,131612
South Ribble Council,http://statistics.data.gov.uk/doc/local-authority/30UN,Area 2 - Waste Transport/Eastern & Central Teams,External Contractors Charges,4570,Organic Waste (Terraced) Inflation Catch up,24/06/2016,0000425089,44.03,Revenue,FCC Environment Services (UK) Ltd,131612
South Ribble Council,http://statistics.data.gov.uk/doc/local-authority/30UN,Area 2 - Waste Transport/Eastern & Central Teams,External Contractors Charges,4570,Schedule 2 Properties Inflation Catch up,24/06/2016,0000425089,12.84,Revenue,FCC Environment Services (UK) Ltd,131612
South Ribble Council,http://statistics.data.gov.uk/doc/local-authority/30UN,Area 2 - Waste Transport/Eastern & Central Teams,External Contractors Charges,4570,Commercial Waste Inflation Catch up,24/06/2016,0000425089,47.24,Revenue,FCC Environment Services (UK) Ltd,131612
South Ribble Council,http://statistics.data.gov.uk/doc/local-authority/30UN,Area 2 - Waste Transport/Eastern & Central Teams,External Contractors Charges,4570,Bulky Waste Inflation Catch up,24/06/2016,0000425089,6.80,Revenue,FCC Environment Services (UK) Ltd,131612
South Ribble Council,http://statistics.data.gov.uk/doc/local-authority/30UN,Area 2 - Waste Transport/Eastern & Central Teams,External Contractors Charges,4570,WEEE collections Inflation Catch up,24/06/2016,0000425089,2.66,Revenue,FCC Environment Services (UK) Ltd,131612
South Ribble Council,http://statistics.data.gov.uk/doc/local-authority/30UN,Area 2 - Waste Transport/Eastern & Central Teams,External Contractors Charges,4570,Clinical Waste Collections Inflation Catch up,24/06/2016,0000425089,4.55,Revenue,FCC Environment Services (UK) Ltd,131612
South Ribble Council,http://statistics.data.gov.uk/doc/local-authority/30UN,Area 2 - Waste Transport/Eastern & Central Teams,Balance Sheet,0030,RETENTION @ 5%,24/06/2016,0000425089,-46.03,Revenue,FCC Environment Services (UK) Ltd,131612
South Ribble Council,http://statistics.data.gov.uk/doc/local-authority/30UN,Area 3 - Parks/Leyland East West,Grounds Maint Cntrctrs Chgs,4657,Spare Parts as per Quotation No 23812,17/06/2016,0000424880,418.70,Revenue,FENLAND LEISURE LTD,130725
South Ribble Council,http://statistics.data.gov.uk/doc/local-authority/30UN,Neighbourhood Admin & Support,Materials General,4040,Pitchmarker Q2 (15 litres),22/06/2016,0000425053,350.06,Revenue,Fleet Line Markers Limited,131942
South Ribble Council,http://statistics.data.gov.uk/doc/local-authority/30UN,Area 2 - Waste Transport/Eastern & Central Teams,External Contractors Charges,4570,ANNUAL LICENCE FEE AND MAINTENANCE OF FLEETCHECK SYSTEM (JUNE 2016 TO MAY 2017),08/06/2016,0000424356,"2,400.00",Revenue,FLEETCHECK LTD,130457
South Ribble Council,http://statistics.data.gov.uk/doc/local-authority/30UN,Area 2 - Waste Transport/Eastern & Central Teams,Cap Vehicles,C440,AS PER YOUR QUOTE REF - 220915 PURCHASE OF 4 FIESTA VANS (@8593.69 EACH),08/06/2016,0000424352,"8,593.69",Revenue,Ford Direct,131652
South Ribble Council,http://statistics.data.gov.uk/doc/local-authority/30UN,Area 2 - Waste Transport/Eastern & Central Teams,Vehicle Running Costs,3137,4 X ROAD FUND LICENCE (@225 PER VEHICLE) AND FIRST REGISTRATION FEE (@55 PER VEHICLE) ,08/06/2016,0000424352,285.00,Revenue,Ford Direct,131652
South Ribble Council,http://statistics.data.gov.uk/doc/local-authority/30UN,Area 2 - Waste Transport/Eastern & Central Teams,Cap Vehicles,C440,AS PER YOUR QUOTE REF - 220915 A PURCHASE OF 4 FIESTA VANS (@8593.69 EACH),08/06/2016,0000424353,"8,593.69",Revenue,Ford Direct,131652
South Ribble Council,http://statistics.data.gov.uk/doc/local-authority/30UN,Area 2 - Waste Transport/Eastern & Central Teams,Vehicle Running Costs,3137,4 X ROAD FUND LICENCE (@225 PER VEHICLE) AND FIRST REGISTRATION FEE (@55 PER VEHICLE) ,08/06/2016,0000424353,285.00,Revenue,Ford Direct,131652
South Ribble Council,http://statistics.data.gov.uk/doc/local-authority/30UN,Area 2 - Waste Transport/Eastern & Central Teams,Cap Vehicles,C440,AS PER YOUR QUOTE REF - 220915  PURCHASE OF 4 FIESTA VANS (@8593.69 EACH),08/06/2016,0000424354,"8,593.69",Revenue,Ford Direct,131652
South Ribble Council,http://statistics.data.gov.uk/doc/local-authority/30UN,Area 2 - Waste Transport/Eastern & Central Teams,Vehicle Running Costs,3137,4 X ROAD FUND LICENCE (@225 PER VEHICLE) AND FIRST REGISTRATION FEE (@55 PER VEHICLE) ,08/06/2016,0000424354,285.00,Revenue,Ford Direct,131652
South Ribble Council,http://statistics.data.gov.uk/doc/local-authority/30UN,Area 2 - Waste Transport/Eastern & Central Teams,External Contractors Charges,4570,REPAIRS TO WORKSHOP EXTRACTION SYSTEM - ,08/06/2016,0000424120,"2,694.00",Revenue,FUMEXLTD,131067
South Ribble Council,http://statistics.data.gov.uk/doc/local-authority/30UN,Area 3 - Parks/Leyland East West,Grounds Maint Cntrctrs Chgs,4657,"CONSTRUCT, GALVANISE AND INSTALL SECURITY GRILL AT ADDRESS REDACTED",17/06/2016,0000413261,400.00,Revenue,G S F (Lancs) Ltd,131474
South Ribble Council,http://statistics.data.gov.uk/doc/local-authority/30UN,Regeneration,Other Misc,4851,"NAME REDACTED 855d Gator x 1 @ 250 for the full hire    250.00 Transport services to deliver & collect 50.00",29/06/2016,0000425101,323.80,Revenue,GATOR HIRE UK LTD,131217
South Ribble Council,http://statistics.data.gov.uk/doc/local-authority/30UN,Area 2 - Waste Transport/Eastern & Central Teams,Materials General,4040,"1 handbrake spool, PO11 END, JFC6779. (NAME REDACTED)",15/06/2016,0000424855,257.13,Revenue,GIBSONS GARDEN MACHINERY LTD,00059051
South Ribble Council,http://statistics.data.gov.uk/doc/local-authority/30UN,Housing,Contributions,4730,Gas servicing for winter warmth scheme,22/06/2016,0000424974,345.00,Revenue,GOS Heating Ltd,131387
South Ribble Council,http://statistics.data.gov.uk/doc/local-authority/30UN,Housing,Contributions,4730,Gas appliance repairs for winter warmth scheme,22/06/2016,0000424975,353.33,Revenue,GOS Heating Ltd,131387
South Ribble Council,http://statistics.data.gov.uk/doc/local-authority/30UN,Area 1 - Penwortham Western Parishes,Contract Hire & Lease Costs,3212,HIRE OF MECHANICAL SWEEPER AND COLLECTION CHARGE (625 PER WEK AND 100 COLLECTION CHARGE) W/C,24/06/2016,0000424179,625.00,Revenue,GULLIVERS TRUCK HIRE LTD,130582
South Ribble Council,http://statistics.data.gov.uk/doc/local-authority/30UN,Area 1 - Penwortham Western Parishes,Contract Hire & Lease Costs,3212,HIRE OF MECHANICAL SWEEPER FOR EXTRA WEEK - W/C 23.5.16,10/06/2016,0000424749,625.00,Revenue,GULLIVERS TRUCK HIRE LTD,130582
South Ribble Council,http://statistics.data.gov.uk/doc/local-authority/30UN,Area 2 - Waste Transport/Eastern & Central Teams,Materials General,4040,1 SWITCH - BIN 369 - GA,01/06/2016,0000424116,276.09,Revenue,H & J SERVICES LTD,00114446
South Ribble Council,http://statistics.data.gov.uk/doc/local-authority/30UN,Area 2 - Waste Transport/Eastern & Central Teams,Materials General,4040,1 X AIR DRYER VALVE - MX04 YNL - JFC6811,22/06/2016,0000424992,321.00,Revenue,H & J SERVICES LTD,00114446
South Ribble Council,http://statistics.data.gov.uk/doc/local-authority/30UN,Area 2 - Waste Transport/Eastern & Central Teams,Materials General,4040,FILTERS,22/06/2016,0000424993,260.92,Revenue,H & J SERVICES LTD,00114446
South Ribble Council,http://statistics.data.gov.uk/doc/local-authority/30UN,Area 2 - Waste Transport/Eastern & Central Teams,Materials General,4040,"6 disc pads, Bin 539.",22/06/2016,0000424994,510.00,Revenue,H & J SERVICES LTD,00114446
South Ribble Council,http://statistics.data.gov.uk/doc/local-authority/30UN,Neighbourhood Admin & Support,Vehicle Running Costs,3134,GAS OIL (2500 litres @ 0.4158 per litre),10/06/2016,0000424750,"1,049.00",Revenue,Hall Fuels trading name of WFL (UK) Ltd,00116758
South Ribble Council,http://statistics.data.gov.uk/doc/local-authority/30UN,Neighbourhood Admin & Support,Vehicle Running Costs,3132,"DIESEL (12,000 LITRES @ 0.8749 per litre)",10/06/2016,0000424760,"10,544.40",Revenue,Hall Fuels trading name of WFL (UK) Ltd,00116758
South Ribble Council,http://statistics.data.gov.uk/doc/local-authority/30UN,Neighbourhood Admin & Support,Vehicle Running Costs,3134,1500ltrs gas oil - 43.76 per litre.,24/06/2016,0000425095,656.40,Revenue,Hall Fuels trading name of WFL (UK) Ltd,00116758
South Ribble Council,http://statistics.data.gov.uk/doc/local-authority/30UN,Neighbourhood Admin & Support,Vehicle Running Costs,3132,15000Ltrs Diesel  @ 88.47p per litre,24/06/2016,0000425096,"13,270.50",Revenue,Hall Fuels trading name of WFL (UK) Ltd,00116758
South Ribble Council,http://statistics.data.gov.uk/doc/local-authority/30UN,Neighbourhood Admin & Support,Materials General,4040,SACKS (ASBESTOS � RED) - PPAB2460,24/06/2016,0000424996,22.00,Revenue,HARRISONS PACKAGING LTD,00024099
South Ribble Council,http://statistics.data.gov.uk/doc/local-authority/30UN,Neighbourhood Admin & Support,Materials General,4040,Clear Refuse Sacks - PPRS2501,24/06/2016,0000424996,573.75,Revenue,HARRISONS PACKAGING LTD,00024099
South Ribble Council,http://statistics.data.gov.uk/doc/local-authority/30UN,Area 2 - Waste Transport/Eastern & Central Teams,Materials General,4040,HOPPER FLOOR AND SIDES - JFC6732 - YP11CFM - ,08/06/2016,0000424156,"1,884.88",Revenue,HEIL EUROPE LTD,130575
South Ribble Council,http://statistics.data.gov.uk/doc/local-authority/30UN,Area 2 - Waste Transport/Eastern & Central Teams,Materials General,4040,2 RAMS - PJ62 UCH - JFC6984- ,22/06/2016,0000425049,340.90,Revenue,HEIL EUROPE LTD,130575
South Ribble Council,http://statistics.data.gov.uk/doc/local-authority/30UN,HR & Communications,Advertising,4848,PRINTING OF NEW COUNCILLOR INFO SHEETS 2016,15/06/2016,0000424787,258.00,Revenue,HEWETSONMEDIA,130088
South Ribble Council,http://statistics.data.gov.uk/doc/local-authority/30UN,Legal,Professional Fees,4523,6-jun to 9-jun-16,22/06/2016,0000424817,300.00,Revenue,HM LAND REGISTRY,00023207
South Ribble Council,http://statistics.data.gov.uk/doc/local-authority/30UN,Area 3 - Parks/Leyland East West,Grounds Maint Cntrctrs Chgs,4657,x 1 1200H PRO SAFE GATE IN YELLOW (LEFT HAND OPENING) HOLLAND HOUSE FARM - PLAY18,17/06/2016,0000418467,645.99,Revenue,IAE,131860
South Ribble Council,http://statistics.data.gov.uk/doc/local-authority/30UN,Area 3 - Parks/Leyland East West,Grounds Maint Cntrctrs Chgs,4657,PRO SAFE MAJOR REPAIR KIT,17/06/2016,0000418467,155.00,Revenue,IAE,131860
South Ribble Council,http://statistics.data.gov.uk/doc/local-authority/30UN,Area 3 - Parks/Leyland East West,Grounds Maint Cntrctrs Chgs,4657,CARRIAGE,17/06/2016,0000418467,70.00,Revenue,IAE,131860
South Ribble Council,http://statistics.data.gov.uk/doc/local-authority/30UN,Environmental Health,Other Misc,4851,LOL Memberships 2016/2017.,03/06/2016,0000424122,275.00,Revenue,INSTITUTE OF LICENSING EVENTS LTD,00118125
South Ribble Council,http://statistics.data.gov.uk/doc/local-authority/30UN,HR & Communications,Training Expense-Course Fees,1406,"PLEASE BOOK IN MANCHESTER NAME REDACTED NAME REDACTED NAME REDACTED NAME REDACTED",22/06/2016,0000425020,535.00,Revenue,INSTITUTE OF LICENSING EVENTS LTD,00118125
South Ribble Council,http://statistics.data.gov.uk/doc/local-authority/30UN,Property Services,Rep & Maint Premises,2020,"empty the catchment pit, diesel fuel storage tank at Moss Side depot and clean out the channel leading into the catchment area.",22/06/2016,0000425021,752.95,Revenue,J SEED & CO LTD,00121675
South Ribble Council,http://statistics.data.gov.uk/doc/local-authority/30UN,HR & Communications,Recruitment Expenses,1500,CONTRACT RENEWAL 2016/2017,22/06/2016,0000424925,"2,271.00",Revenue,JOBSGOPUBLIC,00040358
South Ribble Council,http://statistics.data.gov.uk/doc/local-authority/30UN,Area 3 - Parks/Leyland East West,Grounds Maint Cntrctrs Chgs,4657,"17 NO. 6 X 3`` POSTS, 3 NO. 4 X 4`` X 1.5M WITH BIRDS MOUTH TOP, 3 NO. 4 X 4`` X 3.6 POSTS, 30 NO. 3`` X 1.5`` RAILS",10/06/2016,0000424752,255.04,Revenue,JOHN HY MAYOR & SONS LTD,00028176
South Ribble Council,http://statistics.data.gov.uk/doc/local-authority/30UN,Planning,Advertising,4841,Public notices for planning applications.,17/06/2016,0000424372,525.00,Revenue,JOHNSTON PUBLISHING (NORTH WEST),00011345
South Ribble Council,http://statistics.data.gov.uk/doc/local-authority/30UN,Planning,Advertising,4841,Public notices for planning applications.,17/06/2016,0000424373,656.25,Revenue,JOHNSTON PUBLISHING (NORTH WEST),00011345
South Ribble Council,http://statistics.data.gov.uk/doc/local-authority/30UN,Planning,Advertising,4841,Public notices for planning applications.,17/06/2016,0000424869,551.25,Revenue,JOHNSTON PUBLISHING (NORTH WEST),00011345
South Ribble Council,http://statistics.data.gov.uk/doc/local-authority/30UN,Planning,Advertising,4841,Public notices for planning applications.,24/06/2016,0000425110,603.75,Revenue,JOHNSTON PUBLISHING (NORTH WEST),00011345
South Ribble Council,http://statistics.data.gov.uk/doc/local-authority/30UN,Planning,Advertising,4841,Public notices for planning applications.,24/06/2016,0000425111,551.25,Revenue,JOHNSTON PUBLISHING (NORTH WEST),00011345
South Ribble Council,http://statistics.data.gov.uk/doc/local-authority/30UN,Healthy Communities,Other Misc,4851,"St Leonard`s Primary School 2.5 Hours Per Week for 5 Weeks @ 25 per hour Cost - 312.50",17/06/2016,0000424822,312.50,Revenue,NAME REDACTED,131841
South Ribble Council,http://statistics.data.gov.uk/doc/local-authority/30UN,Healthy Communities,Other Misc,4851,"Cuerden Church Primary School 3.25 Hours Per Week for 5 Weeks @ 25 Per Hour Cost - 406.25",17/06/2016,0000424822,406.25,Revenue,NAME REDACTED,131841
South Ribble Council,http://statistics.data.gov.uk/doc/local-authority/30UN,Area 3 - Parks/Leyland East West,Grounds Maint Cntrctrs Chgs,4657,HIRE OF 1.5 TON EXCAVATOR. ON HIRE WEDNESDAY 25.5.16 FOR 1 WEEKS HIRE (DK) TO BE COLLECTED.,15/06/2016,0000424794,225.00,Revenue,K H HIRE SERVICES,00012933
South Ribble Council,http://statistics.data.gov.uk/doc/local-authority/30UN,Area 3 - Parks/Leyland East West,Grounds Maint Cntrctrs Chgs,4657,EXTENSION TO HIRE PERIOD FROM 2.6.16 UNTIL 8.6.16 (MACHINE TO BE STOOD DOWN ON 6.6.16),15/06/2016,0000424794,225.00,Revenue,K H HIRE SERVICES,00012933
South Ribble Council,http://statistics.data.gov.uk/doc/local-authority/30UN,Area 1 - Penwortham Western Parishes,External Contractors Charges,4570,Traffic Management - South Ribble Bypasses week commencing 9.5.16,08/06/2016,0000419162,"4,259.00",Revenue,KAYS TRAFFIC MANAGEMENT LTD,00072342
South Ribble Council,http://statistics.data.gov.uk/doc/local-authority/30UN,Area 1 - Penwortham Western Parishes,External Contractors Charges,4570,Traffic Management - South Ribble Bypasses week commencing 9.5.16,08/06/2016,0000424176,"4,259.00",Revenue,KAYS TRAFFIC MANAGEMENT LTD,00072342
South Ribble Council,http://statistics.data.gov.uk/doc/local-authority/30UN,Area 3 - Parks/Leyland East West,Materials General,4046,CARPET BED FOR 2016 AS PER YOUR QUOTATION PLEASE DELIVER WEEK 23 (6-10 JUNE 2016),15/06/2016,0000424765,"2,580.00",Revenue,KERNOCK PARK PLANTS,00081304
South Ribble Council,http://statistics.data.gov.uk/doc/local-authority/30UN,Homelessness,Contributions,4730,HOUSING ADVICE AND MEDIATION 1/4/16 - 30/6/16FOR NEXT FINANCIAL YEAR 16/17,15/06/2016,0000424800,"5,000.00",Revenue,KEY UNLOCKING FUTURES LTD,00098601
South Ribble Council,http://statistics.data.gov.uk/doc/local-authority/30UN,Homelessness,Other Misc,4851,For KEY Pre tenancy training from 1/3/2016 to 31/5/2016 MONTH FOR FINANCIAL YEAR2015-16 5 MONTHS FOR FINANCIAL ,17/06/2016,0000424939,"2,500.00",Revenue,KEY UNLOCKING FUTURES LTD,00098601
South Ribble Council,http://statistics.data.gov.uk/doc/local-authority/30UN,Homelessness,Contributions,4730,KEY - HOUSING ADVICE AND MEDIATIO Q2 01/07/2016 - 30/09/2016,29/06/2016,0000425116,"5,000.00",Revenue,KEY UNLOCKING FUTURES LTD,00098601
South Ribble Council,http://statistics.data.gov.uk/doc/local-authority/30UN,Healthy Communities,Consultancy Fees,4541,South Ribble Leisure Trust - Sports Facilities Strategy Update Workshop session - 06.01.2016 and additional design layouts,17/06/2016,0000424285,"2,000.00",Revenue,KNIGHT KAVANAGH & PAGE LTD,131981
South Ribble Council,http://statistics.data.gov.uk/doc/local-authority/30UN,Area 2 - Waste Transport/Eastern & Central Teams,Waste Disposal Charges,5112,February 2016 - Incineration of Clinical Waste.,22/06/2016,0000424930,612.37,Revenue,LANCASHIRE TEACHING FT,00120715
South Ribble Council,http://statistics.data.gov.uk/doc/local-authority/30UN,Area 2 - Waste Transport/Eastern & Central Teams,Contractors Charges 5,5412,"Quarter 4 Disposal Fee, Landfill tax & 5% admin fee",15/06/2016,0000424082,"53,550.04",Revenue,LANCS COUNTY COUNCIL,00041645
South Ribble Council,http://statistics.data.gov.uk/doc/local-authority/30UN,Legal,Other Local Authorities,4530,LAND CHARGES - APRIL 2016,17/06/2016,0000424793,"1,313.50",Revenue,LANCS COUNTY COUNCIL,00041645
South Ribble Council,http://statistics.data.gov.uk/doc/local-authority/30UN,Housing,Cap Grant- Improve Grants,C570,Stairlift at ADDRESS REDACTED for NAME REDACTED as per your quote.,22/06/2016,0000424998,995.00,Revenue,LANCS COUNTY COUNCIL,00041645
South Ribble Council,http://statistics.data.gov.uk/doc/local-authority/30UN,Housing,Cap Grant- Improve Grants,C570,Closo mat to be installed at ADDRESS REDACTED as per your quote supplied,22/06/2016,0000424999,"3,340.00",Revenue,LANCS COUNTY COUNCIL,00041645
South Ribble Council,http://statistics.data.gov.uk/doc/local-authority/30UN,Scrutiny,Subs to Statutory Bodies,4720,SRBC - Corporate Membership of the Trust at Bronze Level for 2016/17,15/06/2016,0000424856,500.00,Revenue,LANCS WILDLIFE TRUST,00027009
South Ribble Council,http://statistics.data.gov.uk/doc/local-authority/30UN,Area 3 - Parks/Leyland East West,External Contractors Charges,4570,"Construction of Multi-Use tracks at Moss Side Playing Fields, Leyland",15/06/2016,0000424823,"46,386.20",Revenue,LANDSCAPE ENGINEERING LIMITED,130416
South Ribble Council,http://statistics.data.gov.uk/doc/local-authority/30UN,HR & Communications,Training Expense-Course Fees,1403,BOOK ONE PLACE FOR NAME REDACTED ONTO THE BRITISH SIGN LANGUAGE LEVEL 1 QUAL START IN OCT 2015,15/06/2016,0000424743,403.55,Revenue,LCC LANCASHIRE COLLEGE,00111876
South Ribble Council,http://statistics.data.gov.uk/doc/local-authority/30UN,Revenues Plus,Balance Sheet,0001,Balance Sheet,10/06/2016,0000424316,358.65,Revenue,LOSTOCK HALL ACADEMY,00042521
South Ribble Council,http://statistics.data.gov.uk/doc/local-authority/30UN,Housing,Cap Grant- Improve Grants,C570,DFG WORK AT ADDRESS REDACTED,15/06/2016,0000424886,"4,975.00",Revenue,LTL CONSTRUCTION & MAINTENANCE LTD,131406
South Ribble Council,http://statistics.data.gov.uk/doc/local-authority/30UN,Neighbourhood Admin & Support,Operational Furniture & Equip,4010,PADLOCKS  - SQUIRE 660 TO PASS KEY 10,24/06/2016,0000425117,147.87,Revenue,M A C BUILDING PRODUCTS LTD,00051059
South Ribble Council,http://statistics.data.gov.uk/doc/local-authority/30UN,Neighbourhood Admin & Support,Operational Furniture & Equip,4010,SQUIRE 660 PADLOCK PASS KEY 9,24/06/2016,0000425117,118.30,Revenue,M A C BUILDING PRODUCTS LTD,00051059
South Ribble Council,http://statistics.data.gov.uk/doc/local-authority/30UN,Neighbourhood Admin & Support,Operational Furniture & Equip,4010, SQUIRE 660 PADLOCK PASS KEY 3,24/06/2016,0000425117,73.94,Revenue,M A C BUILDING PRODUCTS LTD,00051059
South Ribble Council,http://statistics.data.gov.uk/doc/local-authority/30UN,Area 3 - Parks/Leyland East West,Grounds Maint Cntrctrs Chgs,4657,20T 20mm - Dust Limestone to be dropped at ADDRESS REDACTED on 27/05/2016. Please call ,17/06/2016,0000424931,320.96,Revenue,M C & M A STEWART HAULAGE LTD,00035567
South Ribble Council,http://statistics.data.gov.uk/doc/local-authority/30UN,Area 2 - Waste Transport/Eastern & Central Teams,External Contractors Charges,4570,SPEC REPAIR - JFC6732 - YP11CFM - ,01/06/2016,0000424138,"1,241.25",Revenue,M WILSON COMMERCIALS LIMITED,130533
South Ribble Council,http://statistics.data.gov.uk/doc/local-authority/30UN,Area 2 - Waste Transport/Eastern & Central Teams,External Contractors Charges,4570,SPEC REPAIR - JFC6857 - PJ62UCG - ,10/06/2016,0000424756,568.03,Revenue,M WILSON COMMERCIALS LIMITED,130533
South Ribble Council,http://statistics.data.gov.uk/doc/local-authority/30UN,Area 2 - Waste Transport/Eastern & Central Teams,External Contractors Charges,4570,Spec repair - VK09AHJ - JFC6910 - ,22/06/2016,0000425005,528.45,Revenue,M WILSON COMMERCIALS LIMITED,130533
South Ribble Council,http://statistics.data.gov.uk/doc/local-authority/30UN,Area 2 - Waste Transport/Eastern & Central Teams,External Contractors Charges,4570,"Spec Repair, PO13 UUM, JFC6733 (NAME REDACTED)",22/06/2016,0000425054,557.16,Revenue,M WILSON COMMERCIALS LIMITED,130533
South Ribble Council,http://statistics.data.gov.uk/doc/local-authority/30UN,Neighbourhood Admin & Support,Materials General,4040,ADDRESS REDACTED (AS PER SRBC SPECIFICATION),03/06/2016,0000424174,80.00,Revenue,Main Street Signs Ltd,131922
South Ribble Council,http://statistics.data.gov.uk/doc/local-authority/30UN,Neighbourhood Admin & Support,Materials General,4040,ADDRESS REDACTED  (AS PER SRBC SPECIFICATION),03/06/2016,0000424174,42.00,Revenue,Main Street Signs Ltd,131922
South Ribble Council,http://statistics.data.gov.uk/doc/local-authority/30UN,Neighbourhood Admin & Support,Materials General,4040,ADDRESS REDACTED  (AS PER SRBC SPECIFICATION),03/06/2016,0000424174,41.00,Revenue,Main Street Signs Ltd,131922
South Ribble Council,http://statistics.data.gov.uk/doc/local-authority/30UN,Neighbourhood Admin & Support,Materials General,4040,ADDRESS REDACTED   (AS PER SRBC SPECIFICATION),03/06/2016,0000424174,45.00,Revenue,Main Street Signs Ltd,131922
South Ribble Council,http://statistics.data.gov.uk/doc/local-authority/30UN,Neighbourhood Admin & Support,Materials General,4040,ADDRESS REDACTED   (AS PER SRBC SPECIFICATION),03/06/2016,0000424174,43.00,Revenue,Main Street Signs Ltd,131922
South Ribble Council,http://statistics.data.gov.uk/doc/local-authority/30UN,Neighbourhood Admin & Support,Materials General,4040,ADDRESS REDACTED   (AS PER SRBC SPECIFICATION),03/06/2016,0000424174,46.00,Revenue,Main Street Signs Ltd,131922
South Ribble Council,http://statistics.data.gov.uk/doc/local-authority/30UN,Neighbourhood Admin & Support,Materials General,4040,ADDRESS REDACTED   (AS PER SRBC SPECIFICATION),03/06/2016,0000424174,39.00,Revenue,Main Street Signs Ltd,131922
South Ribble Council,http://statistics.data.gov.uk/doc/local-authority/30UN,Neighbourhood Admin & Support,Materials General,4040,ADDRESS REDACTED   (AS PER SRBC SPECIFICATION),03/06/2016,0000424174,12.00,Revenue,Main Street Signs Ltd,131922
South Ribble Council,http://statistics.data.gov.uk/doc/local-authority/30UN,Neighbourhood Admin & Support,Materials General,4040,ADDRESS REDACTED   (AS PER SRBC SPECIFICATION),03/06/2016,0000424174,92.00,Revenue,Main Street Signs Ltd,131922
South Ribble Council,http://statistics.data.gov.uk/doc/local-authority/30UN,Neighbourhood Admin & Support,Materials General,4040,ADDRESS REDACTED   (AS PER SRBC SPECIFICATION),03/06/2016,0000424174,42.00,Revenue,Main Street Signs Ltd,131922
South Ribble Council,http://statistics.data.gov.uk/doc/local-authority/30UN,Neighbourhood Admin & Support,Materials General,4040,ADDRESS REDACTED   (AS PER SRBC SPECIFICATION),03/06/2016,0000424174,42.00,Revenue,Main Street Signs Ltd,131922
South Ribble Council,http://statistics.data.gov.uk/doc/local-authority/30UN,Neighbourhood Admin & Support,Materials General,4040,ADDRESS REDACTED   (AS PER SRBC SPECIFICATION),03/06/2016,0000424174,42.00,Revenue,Main Street Signs Ltd,131922
South Ribble Council,http://statistics.data.gov.uk/doc/local-authority/30UN,Neighbourhood Admin & Support,Materials General,4040,ADDRESS REDACTED   (AS PER SRBC SPECIFICATION),03/06/2016,0000424174,84.00,Revenue,Main Street Signs Ltd,131922
South Ribble Council,http://statistics.data.gov.uk/doc/local-authority/30UN,Neighbourhood Admin & Support,Materials General,4040,ADDRESS REDACTED   (AS PER SRBC SPECIFICATION),03/06/2016,0000424174,45.00,Revenue,Main Street Signs Ltd,131922
South Ribble Council,http://statistics.data.gov.uk/doc/local-authority/30UN,Neighbourhood Admin & Support,Materials General,4040,DELIVERY CHARGE,03/06/2016,0000424174,59.50,Revenue,Main Street Signs Ltd,131922
South Ribble Council,http://statistics.data.gov.uk/doc/local-authority/30UN,Property Services,Rep & Maint Premises,2020,2016 / 2017 annual gutter inspection / cleaning at  ADDRESSES REDACTED,10/06/2016,0000424744,432.00,Revenue,MAINCOAT LTD,00099244
South Ribble Council,http://statistics.data.gov.uk/doc/local-authority/30UN,Property Services,Rep & Maint Premises,2020,2016 / 2017 annual gutter inspection / cleaning at ADDRESS REDACTED,10/06/2016,0000424744,107.50,Revenue,MAINCOAT LTD,00099244
South Ribble Council,http://statistics.data.gov.uk/doc/local-authority/30UN,Property Services,Rep & Maint Premises,2020,2016 / 2017 annual gutter inspection / cleaning at ADDRESS REDACTED,10/06/2016,0000424744,70.50,Revenue,MAINCOAT LTD,00099244
South Ribble Council,http://statistics.data.gov.uk/doc/local-authority/30UN,Property Services,Rep & Maint Premises,2020,2016 / 2017 annual gutter inspection / cleaning at ADDRESS REDACTED,10/06/2016,0000424744,107.50,Revenue,MAINCOAT LTD,00099244
South Ribble Council,http://statistics.data.gov.uk/doc/local-authority/30UN,Property Services,Rep & Maint Premises,2020,2016 / 2017 annual gutter inspection / cleaning at ADDRESSES REDACTED,10/06/2016,0000424744,181.50,Revenue,MAINCOAT LTD,00099244
South Ribble Council,http://statistics.data.gov.uk/doc/local-authority/30UN,Property Services,Rep & Maint Premises,2020,2016 / 2017 annual gutter inspection / cleaning at ADDRESSES REDACTED,10/06/2016,0000424744,107.50,Revenue,MAINCOAT LTD,00099244
South Ribble Council,http://statistics.data.gov.uk/doc/local-authority/30UN,Property Services,Rep & Maint Premises,2020,2016 / 2017 annual gutter inspection / cleaning at ADDRESS REDACTED,10/06/2016,0000424744,107.50,Revenue,MAINCOAT LTD,00099244
South Ribble Council,http://statistics.data.gov.uk/doc/local-authority/30UN,Property Services,Rep & Maint Premises,2020,2016 / 2017 annual gutter inspection / cleaning at ADDRESS REDACTED,10/06/2016,0000424744,70.50,Revenue,MAINCOAT LTD,00099244
South Ribble Council,http://statistics.data.gov.uk/doc/local-authority/30UN,Property Services,Rep & Maint Premises,2020,2016 / 2017 annual gutter inspection / cleaning at ADDRESS REDACTED,17/06/2016,0000424932,70.50,Revenue,MAINCOAT LTD,00099244
South Ribble Council,http://statistics.data.gov.uk/doc/local-authority/30UN,Property Services,Rep & Maint Premises,2020,2016 / 2017 annual gutter inspection / cleaning at ADDRESSES REDACTED,17/06/2016,0000424932,144.50,Revenue,MAINCOAT LTD,00099244
South Ribble Council,http://statistics.data.gov.uk/doc/local-authority/30UN,Property Services,Rep & Maint Premises,2020,2016 / 2017 annual gutter inspection / cleaning at ADDRESS REDACTED,17/06/2016,0000424932,70.50,Revenue,MAINCOAT LTD,00099244
South Ribble Council,http://statistics.data.gov.uk/doc/local-authority/30UN,Property Services,Rep & Maint Premises,2020,2016 / 2017 annual gutter inspection / cleaning at ADDRESS REDACTED,17/06/2016,0000424932,70.50,Revenue,MAINCOAT LTD,00099244
South Ribble Council,http://statistics.data.gov.uk/doc/local-authority/30UN,Property Services,Rep & Maint Premises,2020,2016 / 2017 annual gutter inspection / cleaning at ADDRESS REDACTED,17/06/2016,0000424932,70.50,Revenue,MAINCOAT LTD,00099244
South Ribble Council,http://statistics.data.gov.uk/doc/local-authority/30UN,Property Services,Rep & Maint Premises,2020,"2016 / 2017 annual gutter inspection / cleaning at north lodge, craft units, greenhouse & depot at Worden Park",17/06/2016,0000424932,107.50,Revenue,MAINCOAT LTD,00099244
South Ribble Council,http://statistics.data.gov.uk/doc/local-authority/30UN,Property Services,Rep & Maint Premises,2020,2016 / 2017 contract for gutter inspection at Higher Walton Community Centre,29/06/2016,0000425106,89.00,Revenue,MAINCOAT LTD,00099244
South Ribble Council,http://statistics.data.gov.uk/doc/local-authority/30UN,Property Services,Rep & Maint Premises,2020,2016 / 2017 contract for gutter inspection at Leyland Museum,29/06/2016,0000425106,89.00,Revenue,MAINCOAT LTD,00099244
South Ribble Council,http://statistics.data.gov.uk/doc/local-authority/30UN,Property Services,Rep & Maint Premises,2020,2016 / 2017 contract for gutter inspection at Longton Brickcroft,29/06/2016,0000425106,107.50,Revenue,MAINCOAT LTD,00099244
South Ribble Council,http://statistics.data.gov.uk/doc/local-authority/30UN,Property Services,Rep & Maint Premises,2020,2016 / 2017 contract for gutter inspection at Penwortham Leisure Centre,29/06/2016,0000425106,181.50,Revenue,MAINCOAT LTD,00099244
South Ribble Council,http://statistics.data.gov.uk/doc/local-authority/30UN,Property Services,Rep & Maint Premises,2020,2016 / 2017 contract for gutter inspection at Carr Street Community Centre,29/06/2016,0000425106,89.00,Revenue,MAINCOAT LTD,00099244
South Ribble Council,http://statistics.data.gov.uk/doc/local-authority/30UN,Property Services,Rep & Maint Premises,2020,2016 / 2017 contract for gutter inspection at Holland House Farm,29/06/2016,0000425106,70.50,Revenue,MAINCOAT LTD,00099244
South Ribble Council,http://statistics.data.gov.uk/doc/local-authority/30UN,Property Services,Rep & Maint Premises,2020,"2016 / 2017 contract for gutter inspection at crossroads toilets, playground toilets, withy grove toilets & hope terrace toilets.",29/06/2016,0000425106,230.00,Revenue,MAINCOAT LTD,00099244
South Ribble Council,http://statistics.data.gov.uk/doc/local-authority/30UN,Property Services,Rep & Maint Premises,2020,2016 / 2017 contract for gutter inspection at Hern Ave & St Cuthbert`s pavilions,29/06/2016,0000425106,70.50,Revenue,MAINCOAT LTD,00099244
South Ribble Council,http://statistics.data.gov.uk/doc/local-authority/30UN,Property Services,Rep & Maint Premises,2020,2016 / 2017 contract for gutter inspection at Withy Grove & Holme Pavilions,29/06/2016,0000425106,70.50,Revenue,MAINCOAT LTD,00099244
South Ribble Council,http://statistics.data.gov.uk/doc/local-authority/30UN,Property Services,Rep & Maint Premises,2020,2016 / 2017 contract for gutter inspection at Hurst Grange & Kingsfold pavilions,29/06/2016,0000425106,70.50,Revenue,MAINCOAT LTD,00099244
South Ribble Council,http://statistics.data.gov.uk/doc/local-authority/30UN,Property Services,Rep & Maint Premises,2020,2016 / 2017 contract for gutter inspection at Worden park pavilions,29/06/2016,0000425106,70.50,Revenue,MAINCOAT LTD,00099244
South Ribble Council,http://statistics.data.gov.uk/doc/local-authority/30UN,Property Services,Rep & Maint Premises,2020,"2016 / 2017 contract for gutter inspection at Worden arts centre, coffee shop, derby wing (offices), bungalow (was rangers office)",29/06/2016,0000425106,289.00,Revenue,MAINCOAT LTD,00099244
South Ribble Council,http://statistics.data.gov.uk/doc/local-authority/30UN,Property Services,Rep & Maint Premises,2020,2016 / 2017 contract for hard standing inspection at Higher Walton Community Centre,29/06/2016,0000425106,13.50,Revenue,MAINCOAT LTD,00099244
South Ribble Council,http://statistics.data.gov.uk/doc/local-authority/30UN,Property Services,Rep & Maint Premises,2020,2016 / 2017 contract for hard standing inspection at Leyland Museum,29/06/2016,0000425106,13.50,Revenue,MAINCOAT LTD,00099244
South Ribble Council,http://statistics.data.gov.uk/doc/local-authority/30UN,Property Services,Rep & Maint Premises,2020,2016 / 2017 contract for hard standing inspection at Longton Brick croft,29/06/2016,0000425106,13.50,Revenue,MAINCOAT LTD,00099244
South Ribble Council,http://statistics.data.gov.uk/doc/local-authority/30UN,Property Services,Rep & Maint Premises,2020,2016 / 2017 contract for hard standing inspection at Penwortham Leisure Centre,29/06/2016,0000425106,13.50,Revenue,MAINCOAT LTD,00099244
South Ribble Council,http://statistics.data.gov.uk/doc/local-authority/30UN,Property Services,Rep & Maint Premises,2020,2016 / 2017 contract for hard standing inspection at Carr Street Community Centre,29/06/2016,0000425106,13.50,Revenue,MAINCOAT LTD,00099244
South Ribble Council,http://statistics.data.gov.uk/doc/local-authority/30UN,Property Services,Rep & Maint Premises,2020,2016 / 2017 contract for hard standing inspection at Holland House Farm,29/06/2016,0000425106,13.50,Revenue,MAINCOAT LTD,00099244
South Ribble Council,http://statistics.data.gov.uk/doc/local-authority/30UN,Property Services,Rep & Maint Premises,2020,"2016 / 2017 contract for hard standing inspection at Crossroads & playground toilets worden park, withy grove toilets & hope terr",29/06/2016,0000425106,40.50,Revenue,MAINCOAT LTD,00099244
South Ribble Council,http://statistics.data.gov.uk/doc/local-authority/30UN,Property Services,Rep & Maint Premises,2020,2016 / 2017 contract for hard standing inspection at Hern Avenue & St Cuthbert`s pavilions,29/06/2016,0000425106,13.50,Revenue,MAINCOAT LTD,00099244
South Ribble Council,http://statistics.data.gov.uk/doc/local-authority/30UN,Property Services,Rep & Maint Premises,2020,2016 / 2017 contract for hard standing inspection at withy grove & Holme pavilions,29/06/2016,0000425106,13.50,Revenue,MAINCOAT LTD,00099244
South Ribble Council,http://statistics.data.gov.uk/doc/local-authority/30UN,Property Services,Rep & Maint Premises,2020,2016 / 2017 contract for hard standing inspection at Hurst Grange & Kingsfold pavilions,29/06/2016,0000425106,13.50,Revenue,MAINCOAT LTD,00099244
South Ribble Council,http://statistics.data.gov.uk/doc/local-authority/30UN,Property Services,Rep & Maint Premises,2020,2016 / 2017 contract for hard standing inspection at Worden park pavilions,29/06/2016,0000425106,13.50,Revenue,MAINCOAT LTD,00099244
South Ribble Council,http://statistics.data.gov.uk/doc/local-authority/30UN,Property Services,Rep & Maint Premises,2020,2016 / 2017 contract for hard standing inspection at Worden arts centre & associated buildings,29/06/2016,0000425106,81.00,Revenue,MAINCOAT LTD,00099244
South Ribble Council,http://statistics.data.gov.uk/doc/local-authority/30UN,Area 1 - Penwortham Western Parishes,Professional Fees,4521,PROVISION OF STRAY DOG SERVICE - TO COVER MAY 2016,24/06/2016,0000424348,446.68,Revenue,MORNINGSIDE KENNELS,00067755
South Ribble Council,http://statistics.data.gov.uk/doc/local-authority/30UN,HR & Communications,Training Expense-Course Fees,1402,BOOK 2 PLACES FOR NAME REDACTED AND NAME REDACTED ONTO THE GROUND BASED CHAINSAW OPERATOR,15/06/2016,0000424714,720.00,Revenue,MYERSCOUGH COLLEGE,00026453
South Ribble Council,http://statistics.data.gov.uk/doc/local-authority/30UN,Development Enterprise & Comm Mgnt,Other Misc,4861,Event management � Penwortham Live 2016,10/06/2016,0000424736,"1,000.00",Revenue,NAME REDACTED,131699
South Ribble Council,http://statistics.data.gov.uk/doc/local-authority/30UN,Neighbourhood Admin & Support,Materials General,4040,SCHMIDT MINI SWEEPER BRUSHES (SWINGO) - 71107/1,17/06/2016,0000424901,404.54,Revenue,NORTHERN MUNICIPAL SPARES LTD,00117061
South Ribble Council,http://statistics.data.gov.uk/doc/local-authority/30UN,Regeneration,Other Misc,485A,Coastal Communities Fund Small Business Grant,22/06/2016,0000424885,500.00,Revenue,NORWYN LTD,00118303
South Ribble Council,http://statistics.data.gov.uk/doc/local-authority/30UN,Area 1 - Penwortham Western Parishes,Professional Fees,4514,DEPLOYMENT OF OFFICERS MAY 2016,10/06/2016,0000424711,"1,656.70",Revenue,NSL LTD,00116868
South Ribble Council,http://statistics.data.gov.uk/doc/local-authority/30UN,Area 1 - Penwortham Western Parishes,Other Misc,4855,CASH COLLECTION AND RING GO TRANSACTIONS MAY 2016,10/06/2016,0000424711,152.50,Revenue,NSL LTD,00116868
South Ribble Council,http://statistics.data.gov.uk/doc/local-authority/30UN,Information Services,Peripherals,4247, System Care Support 1/4/16 to 31/3/17,01/06/2016,0000424140,"5,288.00",Revenue,NVIRON LTD,00028781
South Ribble Council,http://statistics.data.gov.uk/doc/local-authority/30UN,Regeneration,Consultancy Fees,4541,deliver a business and innovation advice,01/06/2016,0000419292,"3,100.00",Revenue,ORVIA GROUP LTD,131952
South Ribble Council,http://statistics.data.gov.uk/doc/local-authority/30UN,Area 1 - Penwortham Western Parishes,Operational Furniture & Equip,4013,Call out repair P&D Machine No 11 at Leyland Railway Station on 17.5.16. Replaced battery & printer as per job sheet 252230,22/06/2016,0000425010,726.23,Revenue,PARKEON LTD,00082918
South Ribble Council,http://statistics.data.gov.uk/doc/local-authority/30UN,Environmental Health,Professional Fees,4522,government fee,03/06/2016,0000424338,308.00,Revenue,Personnel Checks,131483
South Ribble Council,http://statistics.data.gov.uk/doc/local-authority/30UN,Environmental Health,Professional Fees,4522,admin fee,03/06/2016,0000424338,93.33,Revenue,Personnel Checks,131483
South Ribble Council,http://statistics.data.gov.uk/doc/local-authority/30UN,Neighbourhood Admin & Support,Vehicle Running Costs,3132,FUEL FOR MAY 2016,24/06/2016,0000425125,373.53,Revenue,PETROMEX MILLBROOK WAY SERVICE STATION,00062572
South Ribble Council,http://statistics.data.gov.uk/doc/local-authority/30UN,Information Services,Stationery,4136,RX12195  Nyrex  Twin wallet pk 25,01/06/2016,0000424286,255.00,Revenue,PHILLIPS BUSINESS SOLUTIONS,00032214
South Ribble Council,http://statistics.data.gov.uk/doc/local-authority/30UN,Property Services,Operational Furniture & Equip,4012,credit to cancel out invoice,29/06/2016,0000425073,321.36,Revenue,PHS GROUP PLC,00031309
South Ribble Council,http://statistics.data.gov.uk/doc/local-authority/30UN,Regeneration,Other Misc,4851,"Toilet Hire for Leyland Festival on Saturday 18th June 2016 14 x T6  toilets @ 700 2 x T7 Toilets   @ 200",24/06/2016,0000425070,"1,000.00",Revenue,Portable Toilet Company,131949
South Ribble Council,http://statistics.data.gov.uk/doc/local-authority/30UN,Information Services,Stationery,4133,"50,000 sheets Evolution Everyday A4 80gm 15,000 sheets Evolution Business A4 90gm 1000 sheets White A4 card 200gsm",01/06/2016,0000424309,325.97,Revenue,PREMIER PAPER GROUP LTD,00022606
South Ribble Council,http://statistics.data.gov.uk/doc/local-authority/30UN,Information Services,Stationery,4133,"50,000 sheets Evolution Everyday A4 80gm 15000 sheets Evolution Business A4 90gm",15/06/2016,0000424821,308.45,Revenue,PREMIER PAPER GROUP LTD,00022606
South Ribble Council,http://statistics.data.gov.uk/doc/local-authority/30UN,Information Services,Stationery,4133,"50,000 sheets Evolution Everyday A4 80gm 30,000 sheets Evolution Business A4 90gm 1000 sheets  Premier Elements Fire",15/06/2016,0000424881,407.42,Revenue,PREMIER PAPER GROUP LTD,00022606
South Ribble Council,http://statistics.data.gov.uk/doc/local-authority/30UN,Area 2 - Waste Transport/Eastern & Central Teams,Materials General,4040,TR Sheet 162 (NAME REDACTED),08/06/2016,0000424734,429.25,Revenue,PRESTON TYRE SPECIALISTS,00109516
South Ribble Council,http://statistics.data.gov.uk/doc/local-authority/30UN,Democratic Services,Other Misc,4422,"Flexi Worldwide Postal Vote Pack - EU REF, Delivery of  500 spare packs",29/06/2016,0000425091,"1,762.50",Revenue,PRINT IMAGE NETWORK LTD,00089199
South Ribble Council,http://statistics.data.gov.uk/doc/local-authority/30UN,Area 3 - Parks/Leyland East West,Grounds Maint Cntrctrs Chgs,4657,WITHYGROVE PLAYGROUNDx 2 SEATS FOR GYROSPIRE (TM3500) INCLUDING FIXINGSx 10 LATTS FOR BRIDGE (D1880,15/06/2016,0000424715,760.24,Revenue,PROLUDIC LTD,00083263
South Ribble Council,http://statistics.data.gov.uk/doc/local-authority/30UN,Area 3 - Parks/Leyland East West,Grounds Maint Cntrctrs Chgs,4657,CARRIAGE,15/06/2016,0000424715,76.02,Revenue,PROLUDIC LTD,00083263
South Ribble Council,http://statistics.data.gov.uk/doc/local-authority/30UN,Area 2 - Waste Transport/Eastern & Central Teams,External Contractors Charges,4570,SPEC REPAIR - JFC6782 - RV14DTZ - ,15/06/2016,0000424791,280.00,Revenue,Red Forge Limited,131499
South Ribble Council,http://statistics.data.gov.uk/doc/local-authority/30UN,Area 2 - Waste Transport/Eastern & Central Teams,External Contractors Charges,4570,DISMANTLE SPRAY BOOTH IN VEHICLE WORKSHOP AT MOSS SIDE DEPOT,22/06/2016,0000424972,303.75,Revenue,RED ROSE BUILDING MAINTENANCE,00085410
South Ribble Council,http://statistics.data.gov.uk/doc/local-authority/30UN,Area 2 - Waste Transport/Eastern & Central Teams,External Contractors Charges,4570,materials,22/06/2016,0000424972,200.00,Revenue,RED ROSE BUILDING MAINTENANCE,00085410
South Ribble Council,http://statistics.data.gov.uk/doc/local-authority/30UN,Property Services,Other Misc,4421,"supply manpower, transport and Harris fencing on 22nd June 2016 to the ADDRESS REDACTED e-mail from property services",29/06/2016,0000425167,313.50,Revenue,RED ROSE BUILDING MAINTENANCE,00085410
South Ribble Council,http://statistics.data.gov.uk/doc/local-authority/30UN,Homelessness,Contractors Charges 5,5311,5624.90 for ADDRESS REDACTED 1/7 to 30/9/16 � next quarters costs,24/06/2016,0000424902,"5,624.90",Revenue,REDDY & CO,00108177
South Ribble Council,http://statistics.data.gov.uk/doc/local-authority/30UN,Information Services,Lease Rental Charges,4036,Lease Rental charges,01/06/2016,0000424110,"10,737.20",Revenue,RICOH (UK) LTD,00082976
South Ribble Council,http://statistics.data.gov.uk/doc/local-authority/30UN,Information Services,Lease Rental Charges,4036,Lease Rental charges,01/06/2016,0000424112,"1,866.00",Revenue,RICOH (UK) LTD,00082976
South Ribble Council,http://statistics.data.gov.uk/doc/local-authority/30UN,Area 1 - Penwortham Western Parishes,Materials General,4040,6 X 150G CHIKARA (@175.00 EACH),01/06/2016,0000412898,"1,050.00",Revenue,RIGBY TAYLOR LTD,00033145
South Ribble Council,http://statistics.data.gov.uk/doc/local-authority/30UN,Area 1 - Penwortham Western Parishes,Materials General,4040,8 X 5 LTR CONTAINERS TRUSTEE AMENITY (@27.00 EACH),01/06/2016,0000412898,216.00,Revenue,RIGBY TAYLOR LTD,00033145
South Ribble Council,http://statistics.data.gov.uk/doc/local-authority/30UN,Area 1 - Penwortham Western Parishes,Materials General,4040,36 X 5 LTRS TRUSTEE AMENITY (@27.00 EACH),10/06/2016,0000424768,972.00,Revenue,RIGBY TAYLOR LTD,00033145
South Ribble Council,http://statistics.data.gov.uk/doc/local-authority/30UN,Neighbourhood Admin & Support,Operational Furniture & Equip,4010,Bag Loops BO5DL110,29/06/2016,0000425099,320.00,Revenue,ROBERT ACTON PRODUCTS DEVELOPMENTS,00014452
South Ribble Council,http://statistics.data.gov.uk/doc/local-authority/30UN,Democratic Services,Other Misc,4422,postal votes,17/06/2016,0000347185,"7,055.80",Revenue,ROYAL MAIL GROUP PLC,00033543
South Ribble Council,http://statistics.data.gov.uk/doc/local-authority/30UN,Democratic Services,Other Misc,4422,postal votes,17/06/2016,0000347186,"1,819.40",Revenue,ROYAL MAIL GROUP PLC,00033543
South Ribble Council,http://statistics.data.gov.uk/doc/local-authority/30UN,Democratic Services,Other Misc,4422,postal votes,17/06/2016,0000347187,"1,784.48",Revenue,ROYAL MAIL GROUP PLC,00033543
South Ribble Council,http://statistics.data.gov.uk/doc/local-authority/30UN,Democratic Services,Other Misc,4423,postal votes,17/06/2016,0000370893,765.24,Revenue,ROYAL MAIL GROUP PLC,00033543
South Ribble Council,http://statistics.data.gov.uk/doc/local-authority/30UN,Democratic Services,Postage,4291,Postage,17/06/2016,0000418862,"2,168.05",Revenue,ROYAL MAIL GROUP PLC,00033543
South Ribble Council,http://statistics.data.gov.uk/doc/local-authority/30UN,Democratic Services,Postage,4291,Postage,17/06/2016,0000419148,"1,044.03",Revenue,ROYAL MAIL GROUP PLC,00033543
South Ribble Council,http://statistics.data.gov.uk/doc/local-authority/30UN,Information Services,Postage,4295,Postage,10/06/2016,0000424745,282.34,Revenue,ROYAL MAIL GROUP PLC,00033543
South Ribble Council,http://statistics.data.gov.uk/doc/local-authority/30UN,Democratic Services,Other Misc,4422,overseas,17/06/2016,0000424773,247.47,Revenue,ROYAL MAIL GROUP PLC,00033543
South Ribble Council,http://statistics.data.gov.uk/doc/local-authority/30UN,Democratic Services,Other Misc,4422,international standard,17/06/2016,0000424773,75.70,Revenue,ROYAL MAIL GROUP PLC,00033543
South Ribble Council,http://statistics.data.gov.uk/doc/local-authority/30UN,Democratic Services,Other Misc,4422,business,17/06/2016,0000424773,143.37,Revenue,ROYAL MAIL GROUP PLC,00033543
South Ribble Council,http://statistics.data.gov.uk/doc/local-authority/30UN,Democratic Services,Other Misc,4422,business mail,17/06/2016,0000424872,"6,954.06",Revenue,ROYAL MAIL GROUP PLC,00033543
South Ribble Council,http://statistics.data.gov.uk/doc/local-authority/30UN,Democratic Services,Other Misc,4422,int standard RWG EPE,17/06/2016,0000424872,7.06,Revenue,ROYAL MAIL GROUP PLC,00033543
South Ribble Council,http://statistics.data.gov.uk/doc/local-authority/30UN,Democratic Services,Other Misc,4422,int standard EUQ,17/06/2016,0000424872,1.37,Revenue,ROYAL MAIL GROUP PLC,00033543
South Ribble Council,http://statistics.data.gov.uk/doc/local-authority/30UN,Democratic Services,Other Misc,4422,international standard EUQ,17/06/2016,0000424873,6.85,Revenue,ROYAL MAIL GROUP PLC,00033543
South Ribble Council,http://statistics.data.gov.uk/doc/local-authority/30UN,Democratic Services,Other Misc,4422,international standard RWP,17/06/2016,0000424873,8.12,Revenue,ROYAL MAIL GROUP PLC,00033543
South Ribble Council,http://statistics.data.gov.uk/doc/local-authority/30UN,Democratic Services,Other Misc,4422,business mail,17/06/2016,0000424873,"7,631.38",Revenue,ROYAL MAIL GROUP PLC,00033543
South Ribble Council,http://statistics.data.gov.uk/doc/local-authority/30UN,Information Services,Postage,4295,Postage,24/06/2016,0000425088,266.90,Revenue,ROYAL MAIL GROUP PLC,00033543
South Ribble Council,http://statistics.data.gov.uk/doc/local-authority/30UN,Property Services,Energy Costs,2304,2/4/16 to 6/5/16,17/06/2016,0000424917,"1,136.98",Revenue,SCOTTISH HYDRO ELECTRIC,130051
South Ribble Council,http://statistics.data.gov.uk/doc/local-authority/30UN,Property Services,Energy Costs,2307,ccl,17/06/2016,0000424917,65.28,Revenue,SCOTTISH HYDRO ELECTRIC,130051
South Ribble Council,http://statistics.data.gov.uk/doc/local-authority/30UN,Property Services,Energy Costs,2304,7/5/16 to 6/6/16,17/06/2016,0000424918,507.06,Revenue,SCOTTISH HYDRO ELECTRIC,130051
South Ribble Council,http://statistics.data.gov.uk/doc/local-authority/30UN,Property Services,Energy Costs,2304,2/3/16 to 26/5/16,17/06/2016,0000424919,"1,560.08",Revenue,SCOTTISH HYDRO ELECTRIC,130051
South Ribble Council,http://statistics.data.gov.uk/doc/local-authority/30UN,Property Services,Energy Costs,2307,ccl,17/06/2016,0000424919,109.00,Revenue,SCOTTISH HYDRO ELECTRIC,130051
South Ribble Council,http://statistics.data.gov.uk/doc/local-authority/30UN,Property Services,Energy Costs,2304,3/3/16 to 2/6/16,17/06/2016,0000424920,618.65,Revenue,SCOTTISH HYDRO ELECTRIC,130051
South Ribble Council,http://statistics.data.gov.uk/doc/local-authority/30UN,Property Services,Energy Costs,2307,ccl,17/06/2016,0000424920,34.98,Revenue,SCOTTISH HYDRO ELECTRIC,130051
South Ribble Council,http://statistics.data.gov.uk/doc/local-authority/30UN,Property Services,Energy Costs,2303,5/3/16 tp 31/5/16,22/06/2016,0000425028,736.77,Revenue,SCOTTISH HYDRO ELECTRIC,130051
South Ribble Council,http://statistics.data.gov.uk/doc/local-authority/30UN,Property Services,Energy Costs,2307,ccl,22/06/2016,0000425028,37.02,Revenue,SCOTTISH HYDRO ELECTRIC,130051
South Ribble Council,http://statistics.data.gov.uk/doc/local-authority/30UN,Property Services,Energy Costs,2303,2/5/16 to 31/5/16,22/06/2016,0000425029,900.63,Revenue,SCOTTISH HYDRO ELECTRIC,130051
South Ribble Council,http://statistics.data.gov.uk/doc/local-authority/30UN,Property Services,Energy Costs,2307,ccl,22/06/2016,0000425029,46.46,Revenue,SCOTTISH HYDRO ELECTRIC,130051
South Ribble Council,http://statistics.data.gov.uk/doc/local-authority/30UN,Property Services,Energy Costs,2303,Energy Costs,22/06/2016,0000425030,"2,812.73",Revenue,SCOTTISH HYDRO ELECTRIC,130051
South Ribble Council,http://statistics.data.gov.uk/doc/local-authority/30UN,Property Services,Energy Costs,2307,ccl,22/06/2016,0000425030,147.25,Revenue,SCOTTISH HYDRO ELECTRIC,130051
South Ribble Council,http://statistics.data.gov.uk/doc/local-authority/30UN,Property Services,Energy Costs,2303,1/5/16 to 31/5/16,22/06/2016,0000425037,"1,639.47",Revenue,SCOTTISH HYDRO ELECTRIC,130051
South Ribble Council,http://statistics.data.gov.uk/doc/local-authority/30UN,Property Services,Energy Costs,2307,ccl,22/06/2016,0000425037,89.07,Revenue,SCOTTISH HYDRO ELECTRIC,130051
South Ribble Council,http://statistics.data.gov.uk/doc/local-authority/30UN,Area 3 - Parks/Leyland East West,Grounds Maint Cntrctrs Chgs,4657,Reinstatement of land around retaining wall at ADDRESSES REDACTED,17/06/2016,0000424707,"4,900.00",Revenue,Singleton Landwork Ltd,131959
South Ribble Council,http://statistics.data.gov.uk/doc/local-authority/30UN,Area 3 - Parks/Leyland East West,External Contractors Charges,4570,re-instate path at Worden Park (Payback),01/06/2016,0000418961,300.00,Revenue,Sodexo Ltd,131970
South Ribble Council,http://statistics.data.gov.uk/doc/local-authority/30UN,Democratic Services,Other Misc,4424,PCC election - For the use of South Ribble Tennis Centre for the count including the provision of bottled water,22/06/2016,0000424944,940.20,Revenue,SOUTH RIBBLE COMMUNITY LEISURE LTD,00094210
South Ribble Council,http://statistics.data.gov.uk/doc/local-authority/30UN,Area 2 - Waste Transport/Eastern & Central Teams,Materials General,4040,12 rollers BIN1268,01/06/2016,0000424290,738.00,Revenue,SPALDINGS,00070849
South Ribble Council,http://statistics.data.gov.uk/doc/local-authority/30UN,Democratic Services,Other Misc,4421,polling station,01/06/2016,0000424119,310.00,Revenue,ST AMBROSE CHURCH HALL,00081540
South Ribble Council,http://statistics.data.gov.uk/doc/local-authority/30UN,Property Services,Rents,2401,2016 / 2017 rental fees for ADDRESS REDACTED,10/06/2016,0000424717,"12,537.50",Revenue,STONEWELL PROPERTY COMPANY LTD,00118138
South Ribble Council,http://statistics.data.gov.uk/doc/local-authority/30UN,Property Services,Rents,2401,less qtr charge,10/06/2016,0000424717,"-2,850.00",Revenue,STONEWELL PROPERTY COMPANY LTD,00118138
South Ribble Council,http://statistics.data.gov.uk/doc/local-authority/30UN,Property Services,Cleaning and Domestic Supplies,2711,Provision of cleaning & janitorial equipment for the civic centre,29/06/2016,0000425134,302.02,Revenue,SWIFT KLEEN,00119360
South Ribble Council,http://statistics.data.gov.uk/doc/local-authority/30UN,Housing,Cap Grant- Improve Grants,C570,DFG Architectural Services for ADDRESS REDACTED,15/06/2016,0000424819,700.00,Revenue,T & S DESIGN SERVICES,131690
South Ribble Council,http://statistics.data.gov.uk/doc/local-authority/30UN,Revenues Plus,Operational Furniture & Equip,4010,NAFN fees 16/17,03/06/2016,0000424323,"1,000.00",Revenue,TAMESIDE METROPOLITAN BOROUGH COUNCIL,00037293
South Ribble Council,http://statistics.data.gov.uk/doc/local-authority/30UN,Area 2 - Waste Transport/Eastern & Central Teams,Materials General,4040,2 FLIPPER ARMS - VN10 DKV - JFC6635 - ,01/06/2016,0000424180,257.68,Revenue,TERBERG MATEC UK LTD,00058625
South Ribble Council,http://statistics.data.gov.uk/doc/local-authority/30UN,Area 2 - Waste Transport/Eastern & Central Teams,External Contractors Charges,4570,"1 spec repair, VN10 DKL, JFC6799. (NAME REDACTED)",08/06/2016,0000424181,257.40,Revenue,TERBERG MATEC UK LTD,00058625
South Ribble Council,http://statistics.data.gov.uk/doc/local-authority/30UN,Area 2 - Waste Transport/Eastern & Central Teams,Materials General,4040,2 X SENSORS - BIN 376,08/06/2016,0000424719,799.16,Revenue,TERBERG MATEC UK LTD,00058625
South Ribble Council,http://statistics.data.gov.uk/doc/local-authority/30UN,Area 2 - Waste Transport/Eastern & Central Teams,External Contractors Charges,4570,SPEC REPAIR - JFC6799 - VN10DKL - ,15/06/2016,0000424788,"2,351.01",Revenue,TERBERG MATEC UK LTD,00058625
South Ribble Council,http://statistics.data.gov.uk/doc/local-authority/30UN,Area 2 - Waste Transport/Eastern & Central Teams,Materials General,4040,1 X REPAIR KIT - PO13 UUM - 6888,24/06/2016,0000424831,"1,733.74",Revenue,TERBERG MATEC UK LTD,00058625
South Ribble Council,http://statistics.data.gov.uk/doc/local-authority/30UN,Area 2 - Waste Transport/Eastern & Central Teams,Materials General,4040,SENSOR - PJ62UCL,17/06/2016,0000424923,381.23,Revenue,TERBERG MATEC UK LTD,00058625
South Ribble Council,http://statistics.data.gov.uk/doc/local-authority/30UN,Area 2 - Waste Transport/Eastern & Central Teams,Materials General,4040,1 STICKER - PJ62 UCM - JFC6921 - ,22/06/2016,0000425079,5.99,Revenue,TERBERG MATEC UK LTD,00058625
South Ribble Council,http://statistics.data.gov.uk/doc/local-authority/30UN,Area 2 - Waste Transport/Eastern & Central Teams,Materials General,4040,2 SWITCHES - PJ62 UCL - JFC6982 - ,22/06/2016,0000425079,601.09,Revenue,TERBERG MATEC UK LTD,00058625
South Ribble Council,http://statistics.data.gov.uk/doc/local-authority/30UN,Legal,Publications,4142,prop law bulletin issues,17/06/2016,0000424772,662.00,Revenue,THOMSON REUTERS,00034979
South Ribble Council,http://statistics.data.gov.uk/doc/local-authority/30UN,Regeneration,Consultancy Fees,4541,"Rental of Room ADDRESS REDACTED from 1st October 2015 to 31st October 2016. NB the council, as tenant, may terminate ",22/06/2016,0000425009,843.75,Revenue,Tustin Developments Limited,131628
South Ribble Council,http://statistics.data.gov.uk/doc/local-authority/30UN,Property Services,Water Charges,2511,15/2/16 to 14/5/16,01/06/2016,0000424136,"7,429.72",Revenue,UNITED UTILITIES WATER PLC,00029845
South Ribble Council,http://statistics.data.gov.uk/doc/local-authority/30UN,Property Services,Rates,2412,4040814782,01/06/2016,0000424170,"1,621.64",Revenue,UNITED UTILITIES WATER PLC,00029845
South Ribble Council,http://statistics.data.gov.uk/doc/local-authority/30UN,Property Services,Rates,2412,4040814793,01/06/2016,0000424170,129.48,Revenue,UNITED UTILITIES WATER PLC,00029845
South Ribble Council,http://statistics.data.gov.uk/doc/local-authority/30UN,Property Services,Rates,2412,4040814997,01/06/2016,0000424170,16.34,Revenue,UNITED UTILITIES WATER PLC,00029845
South Ribble Council,http://statistics.data.gov.uk/doc/local-authority/30UN,Property Services,Rates,2412,4040815241,01/06/2016,0000424170,48.60,Revenue,UNITED UTILITIES WATER PLC,00029845
South Ribble Council,http://statistics.data.gov.uk/doc/local-authority/30UN,Property Services,Rates,2412,40401418188,01/06/2016,0000424170,129.48,Revenue,UNITED UTILITIES WATER PLC,00029845
South Ribble Council,http://statistics.data.gov.uk/doc/local-authority/30UN,Property Services,Rates,2412,40401418213,01/06/2016,0000424170,"1,621.64",Revenue,UNITED UTILITIES WATER PLC,00029845
South Ribble Council,http://statistics.data.gov.uk/doc/local-authority/30UN,Property Services,Rates,2412,4041418382,01/06/2016,0000424170,"7,541.28",Revenue,UNITED UTILITIES WATER PLC,00029845
South Ribble Council,http://statistics.data.gov.uk/doc/local-authority/30UN,Property Services,Rates,2412,4041418406,01/06/2016,0000424170,77.52,Revenue,UNITED UTILITIES WATER PLC,00029845
South Ribble Council,http://statistics.data.gov.uk/doc/local-authority/30UN,Property Services,Rates,2412,4041418484,01/06/2016,0000424170,29.33,Revenue,UNITED UTILITIES WATER PLC,00029845
South Ribble Council,http://statistics.data.gov.uk/doc/local-authority/30UN,Property Services,Rates,2412,4041418311,01/06/2016,0000424170,"14,327.55",Revenue,UNITED UTILITIES WATER PLC,00029845
South Ribble Council,http://statistics.data.gov.uk/doc/local-authority/30UN,Property Services,Rates,2412,4041418815,01/06/2016,0000424170,10.06,Revenue,UNITED UTILITIES WATER PLC,00029845
South Ribble Council,http://statistics.data.gov.uk/doc/local-authority/30UN,Property Services,Rates,2412,4041418917,01/06/2016,0000424170,321.60,Revenue,UNITED UTILITIES WATER PLC,00029845
South Ribble Council,http://statistics.data.gov.uk/doc/local-authority/30UN,Property Services,Rates,2412,4041419067,01/06/2016,0000424170,6.29,Revenue,UNITED UTILITIES WATER PLC,00029845
South Ribble Council,http://statistics.data.gov.uk/doc/local-authority/30UN,Property Services,Rates,2412,4041419089,01/06/2016,0000424170,54.89,Revenue,UNITED UTILITIES WATER PLC,00029845
South Ribble Council,http://statistics.data.gov.uk/doc/local-authority/30UN,Property Services,Rates,2412,4041419261,01/06/2016,0000424170,7.96,Revenue,UNITED UTILITIES WATER PLC,00029845
South Ribble Council,http://statistics.data.gov.uk/doc/local-authority/30UN,Property Services,Rates,2412,4041419409,01/06/2016,0000424170,42.74,Revenue,UNITED UTILITIES WATER PLC,00029845
South Ribble Council,http://statistics.data.gov.uk/doc/local-authority/30UN,Property Services,Rates,2412,4041419421,01/06/2016,0000424170,129.48,Revenue,UNITED UTILITIES WATER PLC,00029845
South Ribble Council,http://statistics.data.gov.uk/doc/local-authority/30UN,Property Services,Operational Furniture & Equip,4012,Annual Contract for Vending Equipment and Environmental charges  for 2016/2017,01/06/2016,0000424145,322.09,Revenue,VENDING ENTERPRISES,00101501
South Ribble Council,http://statistics.data.gov.uk/doc/local-authority/30UN,Democratic Services,Other Misc,4851,To provide pre-signs and road closures for the Mayors Civic Sunday on the 5 June 2016 as discussed with NAME REDACTED,17/06/2016,0000424796,700.00,Revenue,VENTBROOK LTD,131218
South Ribble Council,http://statistics.data.gov.uk/doc/local-authority/30UN,Development Enterprise & Comm Mgnt,Other Misc,4851,X 4 3m x 2m - Market gazebos including sides & back panels X 4 3m x 3m - Market gazebos including sides & back panels X ,01/06/2016,0000418969,"7,476.88",Revenue,VITABRI S A,00121727
South Ribble Council,http://statistics.data.gov.uk/doc/local-authority/30UN,Information Services,Peripherals,4269,"Annual purchase order for ISDN lines, line rentals & call charges for period 01/04/16 - 31/03/17",03/06/2016,0000424351,"1,311.61",Revenue,VODAFONE RE:CABLE & WIRELESS UK,130810
South Ribble Council,http://statistics.data.gov.uk/doc/local-authority/30UN,Information Services,Peripherals,4247,"Annual purchase order for link, internet & router for period 01/04/16 - 31/03/17",08/06/2016,0000424730,"1,312.66",Revenue,VODAFONE RE:CABLE & WIRELESS UK,130810
South Ribble Council,http://statistics.data.gov.uk/doc/local-authority/30UN,Area 3 - Parks/Leyland East West,Materials General,4046,Summer Bedding Plants - Option 2 - as per the attached list,22/06/2016,0000424952,"3,181.33",Revenue,Walkers Oakfield Nurseries,131380
South Ribble Council,http://statistics.data.gov.uk/doc/local-authority/30UN,Legal,Balance Sheet,0030,Test Track Development Costs associated with the Test Track Development (More than one invoice will be received on this,17/06/2016,0000424861,"1,071.00",Revenue,WEIGHTMANS LLP,00120867
South Ribble Council,http://statistics.data.gov.uk/doc/local-authority/30UN,HR & Communications,Other Misc,4851,WORK CARRIED OUT FOR LICENSING INVESTIGATION,17/06/2016,0000424884,"1,080.00",Revenue,WEIGHTMANS LLP,00120867
South Ribble Council,http://statistics.data.gov.uk/doc/local-authority/30UN,Property Services,Balance Sheet,0400,Please supply polling station at 7 am at ADDRESS REDACTED - 4th May 2016 - on site in operation 5th May 2016. Removal ,10/06/2016,0000424704,720.00,Revenue,Wernick Hire Ltd,131449
South Ribble Council,http://statistics.data.gov.uk/doc/local-authority/30UN,Environmental Health,Other Misc,4851,Quotation re no DM479 1 x 1547735 - Velbon Videomate 638 Video Tripod with PH-368 Head 1 x 1547316 Sony HDR-PJ810E ,17/06/2016,0000424929,747.74,Revenue,WEX PHOTOGRAPHIC,131976
South Ribble Council,http://statistics.data.gov.uk/doc/local-authority/30UN,Revenues Plus,Postage,4291,Revenues mail services April 2016,22/06/2016,0000419194,"1,170.92",Revenue,WHISTL  UK LTD,131310
South Ribble Council,http://statistics.data.gov.uk/doc/local-authority/30UN,Revenues Plus,Postage,4291,Revenues mail services May 2016,22/06/2016,0000419216,350.20,Revenue,WHISTL  UK LTD,131310
South Ribble Council,http://statistics.data.gov.uk/doc/local-authority/30UN,Revenues Plus,Postage,4291,Revenues mail services May 2016,22/06/2016,0000424128,938.26,Revenue,WHISTL  UK LTD,131310
South Ribble Council,http://statistics.data.gov.uk/doc/local-authority/30UN,Revenues Plus,Postage,4291,Revenues mail services May 2016,22/06/2016,0000424146,392.38,Revenue,WHISTL  UK LTD,131310
South Ribble Council,http://statistics.data.gov.uk/doc/local-authority/30UN,Revenues Plus,Postage,4291,Revenues mail services May 2016,22/06/2016,0000424774,685.15,Revenue,WHISTL  UK LTD,131310
South Ribble Council,http://statistics.data.gov.uk/doc/local-authority/30UN,Revenues Plus,Postage,4291,Revenues mail services May 2016,22/06/2016,0000424910,394.15,Revenue,WHISTL  UK LTD,131310
South Ribble Council,http://statistics.data.gov.uk/doc/local-authority/30UN,Area 3 - Parks/Leyland East West,Grounds Maint Cntrctrs Chgs,4657,2x 290-105/T Large Red Set of Beaters for Eye Chimes Tethered @ 117.,17/06/2016,0000418934,234.00,Revenue,WICKSTEED LEISURE LTD,00038661
South Ribble Council,http://statistics.data.gov.uk/doc/local-authority/30UN,Area 3 - Parks/Leyland East West,Grounds Maint Cntrctrs Chgs,4657,Carriage,17/06/2016,0000418934,19.89,Revenue,WICKSTEED LEISURE LTD,00038661
South Ribble Council,http://statistics.data.gov.uk/doc/local-authority/30UN,Regeneration,Capital Expenditure,C234,Prepare 10 no timber bollards,03/06/2016,0000424197,600.00,Revenue,WOODSTOCK SIGNS,00039039
South Ribble Council,http://statistics.data.gov.uk/doc/local-authority/30UN,Area 3 - Parks/Leyland East West,Grounds Maint Cntrctrs Chgs,4657,CREDIT 9707 TO CANCEL INVOICE OUT,24/06/2016,0000424857,"1,366.50",Revenue,WOODSTOCK SIGNS,00039039
South Ribble Council,http://statistics.data.gov.uk/doc/local-authority/30UN,Area 3 - Parks/Leyland East West,Grounds Maint Cntrctrs Chgs,4657,RE-LETTERING TO ENTRANCE SIGN AT WORDEN CAR PAR ENTRANCE WITH REFLECTIVE TEXT ( ONE SIDE ONLY ),17/06/2016,0000424858,300.00,Revenue,WOODSTOCK SIGNS,00039039
South Ribble Council,http://statistics.data.gov.uk/doc/local-authority/30UN,Revenues Plus,Peripherals,4242,Print and post consultancy,01/06/2016,0000419229,"1,095.00",Revenue,XLPRINT SOFTWARE,00119658
South Ribble Council,http://statistics.data.gov.uk/doc/local-authority/30UN,Area 3 - Parks/Leyland East West,Grounds Maint Cntrctrs Chgs,4657,157LM of 1M HIGH ZAUN GEMINI SURF PERIMETER FENCING WITH POSTS AT 2.525 CENTRES @ 26.18 PER METRE,01/06/2016,0000424121,"4,198.78",Revenue,ZAUN LIMITED,130123
South Ribble Council,http://statistics.data.gov.uk/doc/local-authority/30UN,Area 3 - Parks/Leyland East West,Grounds Maint Cntrctrs Chgs,4657,"1 No DOUBLE LEAF GATE 3M WIDE x 1.25M HIGH WITH GATE POSTS, DROP BOLTS, SLAM PLATE INCLUDING RUBBER",01/06/2016,0000424121,691.60,Revenue,ZAUN LIMITED,130123
South Ribble Council,http://statistics.data.gov.uk/doc/local-authority/30UN,Area 3 - Parks/Leyland East West,Grounds Maint Cntrctrs Chgs,4657,DELIVERY N.B. LENGTH OF FENCE CHANGED AND DISCUSSED WITH NAME REDACTED 16.2.16,01/06/2016,0000424121,500.14,Revenue,ZAUN LIMITED,130123
